Workbook

Sheet PLANILHA
B1: MINISTÉRIO DA INTEGRAÇÃO E DO DESENVOLVIMENTO REGIONAL - MIDR
B2: COMPANHIA DE DESENVOLVIMENTO DOS VALES DO SÃO FRANCISCO E PARNAÍBA
B3: 1ª SUPERINTENDÊNCIA REGIONAL
A4: OBJETO: Execução dos serviços de perfuração e instalação de poços tubulares a serem executados em municípios inseridos na área de atuação da 1ª Superintendência Regional da CODEVASF, localizados nos estados de Minas Gerais.
A6: ANEXO V - PLANILHA ORÇAMENTÁRIA ESTIMATIVA GERAL
A7: Processo: | B7: 59510.003036/2024-13-e
A8: Banco:
A9: SINAPI - 09/2024 - Minas Gerais SBC - 10/2024 - Minas Gerais SICRO3 - 04/2024 - Minas Gerais ORSE - 06/2024 - Sergipe SEINFRA - 028 - Ceará CPOS/CDHU - 09/2024 - São Paulo FDE - 07/2024 - São Paulo EMBASA - 05/2024 - Bahia
D11: BDI Materiais | E11: BDI Serviços | F11: Encargos Sociais
D12: Não Desonerado: | E12: Não Desonerado: | F12: Não Desonerado:
D13: 0.1528 | E13: 0.2634 | F13: Horista: 108,90%
F14: Mensalista: 67,79%
B16: GRUPO ÚNICO
A17: ITEM | B17: Desccrição | C17: UNIDADE | D17: QUANTIDADE | E17: PREÇO (R$) | F17: PREÇO TOTAL (R$)
A18: 1 | B18: Perfuração e instalação de poço tubular parcialmente revestido, instalado com sistema fotovoltaico, motobomba submersa, reservatório e bebedouro para animais | C18: unid. | D18: 26 | E18: 146087.1 | F18: =TRUNC((D18*E18),2) -> 3798264.6
A19: 2 | B19: Perfuração e instalação de poço tubular totalmente revestido, instalado com sistema fotovoltaico, motobomba submersa, reservatório e bebedouro para animais | C19: unid. | D19: 5 | E19: 232426.4 | F19: =TRUNC((D19*E19),2) -> 1162132
B20: TOTAL ESTIMADO | D20: =SUM(D18:D19) -> 31 | F20: =F18+F19 -> 4960396.6
N23: =150*255 -> 38250

Sheet Resumo Parcialmente
D1: Obra: | E1: Bancos | I1: Encargos Sociais
A2: 1ªSR/MG | D2: PERFURAÇÃO E INSTALAÇÃO DE POÇO TUBULAR PARCIALMENTE REVESTIDO - 120m | E2: SINAPI - 09/2024 - Minas Gerais SBC - 10/2024 - Minas Gerais SICRO3 - 04/2024 - Minas Gerais ORSE - 06/2024 - Sergipe SEINFRA - 028 - Ceará CPOS/CDHU - 09/2024 - São Paulo FDE - 07/2024 - São Paulo EMBASA - 05/2024 - Bahia | I2: Não Desonerado: Horista: 108,90% Mensalista: 67,79%
A3: Planilha Orçamentária Resumida
A4: Item | D4: Descrição | J4: Total | K4: Peso (%)
A5: 1 | D5: SERVIÇOS PRELIMINARES | J5: 7638.12 | K5: =J5 / 146087.1 -> 0.05228469865
A6: 2 | D6: MOBILIZAÇÂO E DESMOBILIZAÇÂO EQUIPES PERFURAÇÂO E INSTALAÇÃO | J6: 4407 | K6: 0.03016693466
A7: 3 | D7: PERFURAÇÃO E COMPLETAÇÃO DE POÇO TUBULAR | J7: 32713.97 | K7: 0.2239346938
A8: 4 | D8: PÓS PERFURAÇÃO | J8: 11799.03 | K8: 0.08076709032
A9: 5 | D9: RESERVAÇÃO | J9: 27094.09 | K9: 0.1854653149
A10: 6 | D10: BEBEDOURO | J10: 1951.4 | K10: 0.0133577845
A11: 7 | D11: CHAFARIZ | J11: 1331.14 | K11: 0.009111961289
A12: 8 | D12: CAVALETE | J12: 2163.96 | K12: 0.01481280688
A13: 9 | D13: INSTALAÇÕES HIDRÁULICAS | J13: 21026.04 | K13: 0.1439281086
A14: 10 | D14: ESTRUTURA DE FIXAÇÃO PARA MÓDULOS FOTOVOLTÁICOS | J14: 5111.04 | K14: 0.03498625135
A15: 11 | D15: INSTALAÇÕES ELÉTRICAS E BÓIA ELÉTRICA | J15: 17574.02 | K15: 0.120298233
A16: 12 | D16: URBANIZAÇÃO | J16: 4225.36 | K16: 0.02892356683
A17: 13 | D17: OUTROS SERVIÇOS E INSUMOS EXCEPCIONAIS | J17: 9051.93 | K17: 0.06196255522
G21: Total Geral | I21: 146087.1
A23: _______________________________________________________________ 1ªGRR/UES

Sheet Orçamento Sintético (P)
D1: Obra: | E1: Bancos | I1: Encargos Sociais
A2: 1ªSR/MG | D2: PERFURAÇÃO E INSTALAÇÃO DE POÇO TUBULAR PARCIALMENTE REVESTIDO - 120m | E2: SINAPI - 09/2024 - Minas Gerais SBC - 10/2024 - Minas Gerais SICRO3 - 04/2024 - Minas Gerais ORSE - 06/2024 - Sergipe SEINFRA - 028 - Ceará CPOS/CDHU - 09/2024 - São Paulo FDE - 07/2024 - São Paulo EMBASA - 05/2024 - Bahia | I2: Não Desonerado: Horista: 108,90% Mensalista: 67,79%
A3: Orçamento Sintético
A4: Item | B4: Código | C4: Banco | D4: Descrição | E4: Und | F4: Quant. | G4: Valor Unit | H4: Total | I4: Peso (%)
A5: 1 | D5: SERVIÇOS PRELIMINARES | H5: 7638.12 | I5: =H5 / 146087.1 -> 0.05228469865
A6: 1.1 | B6: COMPOSIÇÃO - 046 | C6: Próprio | D6: Administração Local da Obra - Poço Parcialmente Revestido | E6: un | F6: 1 | G6: 324.98 | H6: =ROUND(F6 * G6, 2) -> 324.98 | I6: =H6 / 146087.1 -> 0.002224563291
A7: 1.2 | B7: COMPOSIÇÃO - 003 | C7: Próprio | D7: Serviço de locação Geológica de campo com relatório hidro geológico e perfil construtivo e geológico esperado. Relatório de Viabilidade de implantação das estruturas e vistorias preliminares | E7: un | F7: 1 | G7: 745.79 | H7: =ROUND(F7 * G7, 2) -> 745.79 | I7: =H7 / 146087.1 -> 0.005105105105
A8: 1.3 | B8: 103689 | C8: SINAPI | D8: FORNECIMENTO E INSTALAÇÃO DE PLACA DE OBRA COM CHAPA GALVANIZADA E ESTRUTURA DE MADEIRA. AF_03/2022_PS | E8: m² | F8: 0.72 | G8: 615.74 | H8: =ROUND(F8 * G8, 2) -> 443.33 | I8: =H8 / 146087.1 -> 0.003034696424
A9: 1.4 | B9: COMPOSIÇÃO - 052 | C9: Próprio | D9: Taxas e emolumentos fiscais , administrativos para obtenção outorga e outros | E9: un | F9: 1 | G9: 6124.02 | H9: =ROUND(F9 * G9, 2) -> 6124.02 | I9: =H9 / 146087.1 -> 0.04192033383
A10: 2 | D10: MOBILIZAÇÂO E DESMOBILIZAÇÂO EQUIPES PERFURAÇÂO E INSTALAÇÃO | H10: 4407 | I10: =H10 / 146087.1 -> 0.03016693466
A11: 2.1 | B11: COMPOSIÇÃO - 006 | C11: Próprio | D11: Transporte de Comboio Perfuração | E11: km | F11: 300 | G11: 5.8 | H11: =ROUND(F11 * G11, 2) -> 1740 | I11: =H11 / 146087.1 -> 0.01191070259
A12: 2.2 | B12: COMPOSIÇÃO - 007 | C12: Próprio | D12: Transporte de Comboio Instalação | E12: km | F12: 300 | G12: 7.3 | H12: =ROUND(F12 * G12, 2) -> 2190 | I12: =H12 / 146087.1 -> 0.01499105671
A13: 2.3 | B13: COMPOSIÇÃO - 067 | C13: Próprio | D13: Transporte de Equipe Teste de Vazão | E13: km | F13: 150 | G13: 3.18 | H13: =ROUND(F13 * G13, 2) -> 477 | I13: =H13 / 146087.1 -> 0.003265175365
A14: 3 | D14: PERFURAÇÃO E COMPLETAÇÃO DE POÇO TUBULAR | H14: 32713.97 | I14: =H14 / 146087.1 -> 0.2239346938
A15: 3.1 | B15: 5051 | C15: ORSE | D15: Perfuraçao em rocha metassedimentar - metassedimento alterado / compacto dn 6" (poço 120m) | E15: m | F15: 90 | G15: 197.48 | H15: =ROUND(F15 * G15, 2) -> 17773.2 | I15: =H15 / 146087.1 -> 0.1216616662
A16: 3.2 | B16: 5057 | C16: ORSE | D16: Perfuração rocha sedimentar sedimento / camadas inconsolidadas dn 12.1/2" - poço até 150m | E16: m | F16: 30 | G16: 312.89 | H16: =ROUND(F16 * G16, 2) -> 9386.7 | I16: =H16 / 146087.1 -> 0.06425413332
A17: 3.3 | B17: COMPOSIÇÃO - 011 | C17: Próprio | D17: Serviço de lançamento cimentação anelar, incluso materiais. | E17: m³ | F17: 1.74 | G17: 684.41 | H17: =ROUND(F17 * G17, 2) -> 1190.87 | I17: =H17 / 146087.1 -> 0.008151780684
A18: 3.4 | B18: 00009854 | C18: SINAPI | D18: TUBO PVC DE REVESTIMENTO GEOMECANICO NERVURADO STANDARD, DN = 154 MM, COMPRIMENTO = 2 M | E18: M | F18: 30 | G18: 145.44 | H18: =ROUND(F18 * G18, 2) -> 4363.2 | I18: =H18 / 146087.1 -> 0.02986711352
A19: 4 | D19: PÓS PERFURAÇÃO | H19: 11799.03 | I19: =H19 / 146087.1 -> 0.08076709032
A20: 4.1 | B20: 6305 | C20: ORSE | D20: Desenvolvimento com Compressor 250psi / 750cfm | E20: h | F20: 2 | G20: 519.46 | H20: =ROUND(F20 * G20, 2) -> 1038.92 | I20: =H20 / 146087.1 -> 0.007111647777
A21: 4.2 | B21: COMPOSIÇÃO - 015 | C21: Próprio | D21: Inspeção ótica em poço tubular câmera com rotação de 360º, visada lateral, com fonte própria de luz, entregue vídeo em cores e marcação de profundidades. | E21: m | F21: 120 | G21: 11.9 | H21: =ROUND(F21 * G21, 2) -> 1428 | I21: =H21 / 146087.1 -> 0.0097749904
A22: 4.3 | B22: COMPOSIÇÃO - 053 | C22: Próprio | D22: Serviço de coleta e Análise Físico-Química e Bacteriológica | E22: un | F22: 1 | G22: 784.81 | H22: =ROUND(F22 * G22, 2) -> 784.81 | I22: =H22 / 146087.1 -> 0.005372206033
A23: 4.4 | B23: 24.80.22 | C23: EMBASA | D23: Ensaio de bombeamento poço tubular incluso materiais e grupo gerador | E23: H | F23: 24 | G23: 322.76 | H23: =ROUND(F23 * G23, 2) -> 7746.24 | I23: =H23 / 146087.1 -> 0.05302480506
A24: 4.5 | B24: COMPOSIÇÃO - 014 | C24: Próprio | D24: Serviço de instalação de laje sanitária com dimensões (1,5x1,5x0,3) metros , incluso material. | E24: un | F24: 1 | G24: 801.06 | H24: =ROUND(F24 * G24, 2) -> 801.06 | I24: =H24 / 146087.1 -> 0.005483441043
A25: 5 | D25: RESERVAÇÃO | H25: 27094.09 | I25: =H25 / 146087.1 -> 0.1854653149
A26: 5.1 | B26: COMPOSIÇÃO - 059 | C26: Próprio | D26: Fornecimento e instalação de reservatório e base elevada 10 m³ | E26: un | F26: 0.8 | G26: 31974.89 | H26: =ROUND(F26 * G26, 2) -> 25579.91 | I26: =H26 / 146087.1 -> 0.1751004024
A27: 5.2 | B27: COMPOSIÇÃO - 039 | C27: Próprio | D27: Fornecimento e execução de reservatório apoiado de 5 m³ | E27: un | F27: 0.2 | G27: 7570.91 | H27: =ROUND(F27 * G27, 2) -> 1514.18 | I27: =H27 / 146087.1 -> 0.01036491244
A28: 6 | D28: BEBEDOURO | H28: 1951.4 | I28: =H28 / 146087.1 -> 0.0133577845
A29: 6.1 | B29: COMPOSIÇÃO - 017 | C29: Próprio | D29: Serviço de execução do bebedouro em concreto armado, incluso materiais. | E29: un | F29: 1 | G29: 1951.4 | H29: =ROUND(F29 * G29, 2) -> 1951.4 | I29: =H29 / 146087.1 -> 0.0133577845
A30: 7 | D30: CHAFARIZ | H30: 1331.14 | I30: =H30 / 146087.1 -> 0.009111961289
A31: 7.1 | B31: COMPOSIÇÃO - 045 | C31: Próprio | D31: Fornecimento de material e instalação do chafariz | E31: un | F31: 1 | G31: 1331.14 | H31: =ROUND(F31 * G31, 2) -> 1331.14 | I31: =H31 / 146087.1 -> 0.009111961289
A32: 8 | D32: CAVALETE | H32: 2163.96 | I32: =H32 / 146087.1 -> 0.01481280688
A33: 8.1 | B33: COMPOSIÇÃO - 018 | C33: Próprio | D33: Fornecimento de conexões e Instalação do Cavalete com hidrômetro e clorador de pastilhas | E33: un | F33: 1 | G33: 2163.96 | H33: =ROUND(F33 * G33, 2) -> 2163.96 | I33: =H33 / 146087.1 -> 0.01481280688
A34: 9 | D34: INSTALAÇÕES HIDRÁULICAS | H34: 21026.04 | I34: =H34 / 146087.1 -> 0.1439281086
A35: 9.1 | B35: COMPOSIÇÃO - 020 | C35: Próprio | D35: Fornecimento e instalação da rede adutora poço-reservatório-bebedouro em PN80 e DN50MM | E35: m | F35: 400 | G35: 35.72 | H35: =ROUND(F35 * G35, 2) -> 14288 | I35: =H35 / 146087.1 -> 0.09780466585
A36: 9.2 | B36: COMPOSIÇÃO - 019 | C36: Próprio | D36: Montagem hidráulica do equipamento de bombeamento | E36: un | F36: 1 | G36: 187.16 | H36: =ROUND(F36 * G36, 2) -> 187.16 | I36: =H36 / 146087.1 -> 0.001281153504
A37: 9.3 | B37: 00038200 | C37: SINAPI | D37: CORDA DE POLIAMIDA 12 MM TIPO BOMBEIRO, PARA TRABALHO EM ALTURA | E37: 100M | F37: 0.93 | G37: 732.17 | H37: =ROUND((F37 * 1 ) * ROUND(F37, 2), 2) -> 0.86 | I37: =H37 / 146087.1 -> 5.88689898e-06
A38: 9.4 | B38: 00009860 | C38: SINAPI | D38: TUBO PVC, ROSCAVEL, 2", PARA AGUA FRIA PREDIAL | E38: M | F38: 90 | G38: 55.65 | H38: =ROUND(F38 * G38, 2) -> 5008.5 | I38: =H38 / 146087.1 -> 0.03428434133
A39: 9.5 | B39: 00003912 | C39: SINAPI | D39: LUVA DE FERRO GALVANIZADO, COM ROSCA BSP, DE 2" | E39: UN | F39: 16 | G39: 45.37 | H39: =ROUND(F39 * G39, 2) -> 725.92 | I39: =H39 / 146087.1 -> 0.004969090358
A40: 9.6 | B40: 5128 | C40: ORSE | D40: Tampa de poço galvanizada em 6" un | E40: un | F40: 1 | G40: 135.54 | H40: =ROUND(F40 * G40, 2) -> 135.54 | I40: =H40 / 146087.1 -> 0.0009278026602
A41: 11 | D41: ESTRUTURA DE FIXAÇÃO PARA MÓDULOS FOTOVOLTÁICOS | H41: 5111.04 | I41: =H41 / 146087.1 -> 0.03498625135
A42: 11.1 | B42: COMPOSIÇÃO - 022 | C42: Próprio | D42: Serviço de fixação de estruturas para os módulos fotovoltaicos e suportes de concreto, incluso materiais. | E42: m² | F42: 16 | G42: 319.44 | H42: =ROUND(F42 * G42, 2) -> 5111.04 | I42: =H42 / 146087.1 -> 0.03498625135
A43: 12 | D43: INSTALAÇÕES ELÉTRICAS E BÓIA ELÉTRICA | H43: 17574.02 | I43: =H43 / 146087.1 -> 0.120298233
A44: 12.1 | B44: COMPOSIÇÃO - 021 | C44: Próprio | D44: Montagem e instalação elétrica do kit de bombeamento e sistema fotovoltaico inclusive sistema de aterramento. | E44: un | F44: 1 | G44: 1361.05 | H44: =ROUND(F44 * G44, 2) -> 1361.05 | I44: =H44 / 146087.1 -> 0.009316702159
A45: 12.2 | B45: 00034622 | C45: SINAPI | D45: FORNECIMENTO DE CABO FLEXIVEL PVC 750 V, 3 CONDUTORES DE 6,0 MM2 | E45: M | F45: 105 | G45: 23.18 | H45: =ROUND((F45 * 1 ) * ROUND(F45, 2), 2) -> 11025 | I45: =H45 / 146087.1 -> 0.07546867588
A46: 12.3 | B46: COMPOSIÇÃO - 047 | C46: Próprio | D46: Fornecimento e instalação de automático de bóia superior e inferior | E46: un | F46: 1 | G46: 86.01 | H46: =ROUND(F46 * G46, 2) -> 86.01 | I46: =H46 / 146087.1 -> 0.0005887583503
A47: 12.4 | B47: 00039257 | C47: SINAPI | D47: CABO MULTIPOLAR DE COBRE, FLEXIVEL, CLASSE 4 OU 5, ISOLACAO EM HEPR, COBERTURA EM PVC-ST2, ANTICHAMA BWF-B, 0,6/1 KV, 3 CONDUTORES DE 1,5 MM2 | E47: M | F47: 200 | G47: 6.91 | H47: =ROUND(F47 * G47, 2) -> 1382 | I47: =H47 / 146087.1 -> 0.009460109756
A48: 12.5 | B48: COTAÇÃO-001 | C48: Próprio | D48: Fornecimento de kit de bombeamento fotovoltaico, incluindo uma bomba CC de 1500W com controladora de carga externa, caixa de proteção metálica, módulos fotovoltaicos compatíveis com a geração de 2200Wp além de componentes elétricos necessários para interligação dos painéis, como cabos, conectores MC4 e presilhas de fixação. | E48: un | F48: 1 | G48: 12311.06 | H48: =ROUND(F48 * G48, 2) -> 12311.06 | I48: =H48 / 146087.1 -> 0.08427205414
A49: 13 | D49: URBANIZAÇÃO | H49: 4225.36 | I49: =H49 / 146087.1 -> 0.02892356683
A50: 13.1 | B50: COMPOSIÇÃO - 023 | C50: Próprio | D50: Cerca com mourões de concreto de 15x15cm, espaçados de 3m e cravados a 0,5m, escoras de 10x10cm nos cantos, e 9 fios de arame de aço ovalado 15x17. | E50: m | F50: 28 | G50: 105.11 | H50: =ROUND(F50 * G50, 2) -> 2943.08 | I50: =H50 / 146087.1 -> 0.02014606355
A51: 13.2 | B51: COMPOSIÇÃO - 024 | C51: Próprio | D51: Serviço de instalação de portão de ferro com suporte e batedor conforme projeto, incluso material | E51: m² | F51: 1.5 | G51: 854.85 | H51: =ROUND(F51 * G51, 2) -> 1282.28 | I51: =H51 / 146087.1 -> 0.008777503284
A52: 14 | D52: OUTROS SERVIÇOS E INSUMOS EXCEPCIONAIS | H52: 9051.93 | I52: =H52 / 146087.1 -> 0.06196255522
A53: 14.1 | B53: COMPOSIÇÃO - 054 | C53: Próprio | D53: Fornecimento e instalação do pré filtro para revestimento interno | E53: m³ | F53: 0.18 | G53: 2103.93 | H53: =ROUND(F53 * G53, 2) -> 378.71 | I53: =H53 / 146087.1 -> 0.002592357573
A54: 14.2 | B54: COMPOSIÇÃO - 025 | C54: Próprio | D54: Execução de tamponamento conforme especificação | E54: m³ | F54: 0.24 | G54: 840.14 | H54: =ROUND(F54 * G54, 2) -> 201.63 | I54: =H54 / 146087.1 -> 0.001380204002
A55: 14.3 | B55: COMPOSIÇÃO - 056 | C55: Próprio | D55: Fornecimento e instalação do filtro para revestimento interno Ø 4 1/2" | E55: m | F55: 0.6 | G55: 151.94 | H55: =ROUND(F55 * G55, 2) -> 91.16 | I55: =H55 / 146087.1 -> 0.0006240112919
A56: 14.4 | B56: COMPOSIÇÃO - 055 | C56: Próprio | D56: Fornecimento e instalação do revestimento interno Ø 4 1/2" | E56: m | F56: 0.6 | G56: 140.86 | H56: =ROUND(F56 * G56, 2) -> 84.52 | I56: =H56 / 146087.1 -> 0.0005785589556
A57: 14.5 | B57: M3929 | C57: SICRO3 | D57: Tubo em aço-carbono - E = 3,00 mm e D = 150 mm (6") | E57: m | F57: 9 | G57: 216.33 | H57: =ROUND(F57 * G57, 2) -> 1946.97 | I57: =H57 / 146087.1 -> 0.01332746012
A58: 14.6 | B58: 00041699 | C58: SINAPI | D58: TUBO DE REVESTIMENTO, EM ACO, CORPO SCHEDULE 40, PONTEIRA SCHEDULE 80, ROSQUEAVEL E SEGMENTADO PARA PERFURACAO, DIAMETRO 8 | E58: M | F58: 1.8 | G58: 2803.67 | H58: =ROUND(F58 * G58, 2) -> 5046.61 | I58: =H58 / 146087.1 -> 0.0345452131
A59: 14.7 | B59: M039706073 | C59: EMBASA | D59: FILTRO NOLD EM AÇO GALVANIZADO DN 6" | E59: M | F59: 1.2 | G59: 965.11 | H59: =ROUND(F59 * G59, 2) -> 1158.13 | I59: =H59 / 146087.1 -> 0.007927667809
A60: 14.8 | B60: COMPOSIÇÃO - 009 | C60: Próprio | D60: Limpeza manual , remoção de cerca, capina e instalação dos equipamentos (área do poço, painéis solares, bebedouro e reservatório) | E60: m² | F60: 70 | G60: 2.06 | H60: =ROUND(F60 * G60, 2) -> 144.2 | I60: =H60 / 146087.1 -> 0.0009870823639
E64: Total Geral | G64: 146087.1
A66: _______________________________________________________________ 1ªGRR/UES

Sheet Orçamento Analítico (P)
C1: Obra: | E1: Bancos | G1: B.D.I. | I1: Encargos Sociais
A2: 1ªSR/MG | C2: PERFURAÇÃO E INSTALAÇÃO DE POÇO TUBULAR PARCIALMENTE REVESTIDO - 120m | E2: SINAPI - 09/2024 - Minas Gerais SBC - 10/2024 - Minas Gerais SICRO3 - 04/2024 - Minas Gerais ORSE - 06/2024 - Sergipe SEINFRA - 028 - Ceará CPOS/CDHU - 09/2024 - São Paulo FDE - 07/2024 - São Paulo EMBASA - 05/2024 - Bahia | G2: 26,34% | I2: Não Desonerado: Horista: 108,90% Mensalista: 67,79%
A3: Planilha Orçamentária Analítica
A4: 1 | D4: SERVIÇOS PRELIMINARES | J4: 7638.12
A5: 1.1 | B5: Código | C5: Banco | D5: Descrição | E5: Tipo | G5: Und | H5: Quant. | I5: Valor Unit | J5: Total
A6: Composição | B6: COMPOSIÇÃO - 046 | C6: Próprio | D6: Administração Local da Obra - Poço Parcialmente Revestido | E6: CANT - CANTEIRO DE OBRAS | G6: un | H6: 1 | I6: 257.23 | J6: 257.23
A7: Composição Auxiliar | B7: 012710 | C7: SBC | D7: DESPESAS GERAIS DE MANUTENCAO CANTEIRO DE OBRAS | E7: INSTALACOES PROVISORIAS | G7: MES | H7: 0.03 | I7: 1805.82 | J7: 54.17
A8: Composição Auxiliar | B8: 100321 | C8: SINAPI | D8: TÉCNICO EM SEGURANÇA DO TRABALHO COM ENCARGOS COMPLEMENTARES | E8: SEDI - SERVIÇOS DIVERSOS | G8: MES | H8: 0.03 | I8: 6768.58 | J8: 203.06
E9: MO sem LS => | F9: 91.2 | G9: LS => | H9: 99.31 | I9: MO com LS => | J9: 190.51
E10: Valor do BDI => | F10: 67.754382 | H10: Valor com BDI => | J10: 324.98
G11: Quant. => | H11: 1 | I11: Preço Total => | J11: 324.98
A13: 1.2 | B13: Código | C13: Banco | D13: Descrição | E13: Tipo | G13: Und | H13: Quant. | I13: Valor Unit | J13: Total
A14: Composição | B14: COMPOSIÇÃO - 003 | C14: Próprio | D14: Serviço de locação Geológica de campo com relatório hidro geológico e perfil construtivo e geológico esperado. Relatório de Viabilidade de implantação das estruturas e vistorias preliminares | E14: SERT - SERVIÇOS TÉCNICOS | G14: un | H14: 1 | I14: 590.3 | J14: 590.3
A15: Composição Auxiliar | B15: 30.01.45 | C15: EMBASA | D15: GEOLOGO SENIOR | E15: 3001 | G15: hora | H15: 5 | I15: 97.41 | J15: 487.05
A16: Insumo | B16: 5896 | C16: ORSE | D16: Veículo tipo sedan ou pick-up capacidade 0,6 ton h | E16: Equipamento | G16: h | H16: 5 | I16: 8.33 | J16: 41.65
A17: Insumo | B17: 00004222 | C17: SINAPI | D17: GASOLINA COMUM | E17: Material | G17: L | H17: 10 | I17: 6.16 | J17: 61.6
E18: MO sem LS => | F18: 233.15 | G18: LS => | H18: 253.9 | I18: MO com LS => | J18: 487.05
E19: Valor do BDI => | F19: 155.48502 | H19: Valor com BDI => | J19: 745.79
G20: Quant. => | H20: 1 | I20: Preço Total => | J20: 745.79
A22: 1.3 | B22: Código | C22: Banco | D22: Descrição | E22: Tipo | G22: Und | H22: Quant. | I22: Valor Unit | J22: Total
A23: Composição | B23: 103689 | C23: SINAPI | D23: FORNECIMENTO E INSTALAÇÃO DE PLACA DE OBRA COM CHAPA GALVANIZADA E ESTRUTURA DE MADEIRA. AF_03/2022_PS | E23: PAVI - PAVIMENTAÇÃO | G23: m² | H23: 1 | I23: 487.37 | J23: 487.37
A24: Composição Auxiliar | B24: 102234 | C24: SINAPI | D24: PINTURA IMUNIZANTE PARA MADEIRA, 2 DEMÃOS. AF_01/2021 | E24: PINT - PINTURAS | G24: m² | H24: 0.5 | I24: 22.24 | J24: 11.12
A25: Composição Auxiliar | B25: 88262 | C25: SINAPI | D25: CARPINTEIRO DE FORMAS COM ENCARGOS COMPLEMENTARES | E25: SEDI - SERVIÇOS DIVERSOS | G25: H | H25: 0.3729 | I25: 27.78 | J25: 10.36
A26: Composição Auxiliar | B26: 88316 | C26: SINAPI | D26: SERVENTE COM ENCARGOS COMPLEMENTARES | E26: SEDI - SERVIÇOS DIVERSOS | G26: H | H26: 1.1186 | I26: 20.42 | J26: 22.84
A27: Insumo | B27: 00004509 | C27: SINAPI | D27: SARRAFO *2,5 X 10* CM EM PINUS, MISTA OU EQUIVALENTE DA REGIAO - BRUTA | E27: Material | G27: M | H27: 3.2083 | I27: 4.02 | J27: 12.9
A28: Insumo | B28: 00004813 | C28: SINAPI | D28: PLACA DE OBRA (PARA CONSTRUCAO CIVIL) EM CHAPA GALVANIZADA *N. 22*, ADESIVADA, DE *2,4 X 1,2* M (SEM POSTES PARA FIXACAO) | E28: Material | G28: m² | H28: 1 | I28: 429.5 | J28: 429.5
A29: Insumo | B29: 00005065 | C29: SINAPI | D29: PREGO DE ACO POLIDO COM CABECA 10 X 10 (7/8 X 17) | E29: Material | G29: KG | H29: 0.0113 | I29: 35.12 | J29: 0.4
A30: Insumo | B30: 00005069 | C30: SINAPI | D30: PREGO DE ACO POLIDO COM CABECA 17 X 27 (2 1/2 X 11) | E30: Material | G30: KG | H30: 0.0132 | I30: 18.82 | J30: 0.25
E31: MO sem LS => | F31: 14.07 | G31: LS => | H31: 15.33 | I31: MO com LS => | J31: 29.4
E32: Valor do BDI => | F32: 128.373258 | H32: Valor com BDI => | J32: 615.74
G33: Quant. => | H33: 0.72 | I33: Preço Total => | J33: 443.33
A35: 1.4 | B35: Código | C35: Banco | D35: Descrição | E35: Tipo | G35: Und | H35: Quant. | I35: Valor Unit | J35: Total
A36: Composição | B36: COMPOSIÇÃO - 052 | C36: Próprio | D36: Taxas e emolumentos fiscais , administrativos para obtenção outorga e outros | E36: ASTU - ASSENTAMENTO DE TUBOS E PECAS | G36: un | H36: 1 | I36: 4847.25 | J36: 4847.25
A37: Insumo | B37: A.09.000.020507 | C37: CPOS/CDHU | D37: Outorga de direito de uso para poço profundo conforme Portaria DAEE nº 1.630 de 30/05/2017 e suas complementares 1.631 a 1.635 e Instrução Técnica DPO nº 10 de 30/05/2017 do DAEE | E37: Material | G37: UN | H37: 1 | I37: 4847.25 | J37: 4847.25
E38: MO sem LS => | F38: 0 | G38: LS => | H38: 0 | I38: MO com LS => | J38: 0
E39: Valor do BDI => | F39: 1276.76565 | H39: Valor com BDI => | J39: 6124.02
G40: Quant. => | H40: 1 | I40: Preço Total => | J40: 6124.02
A42: 2 | D42: MOBILIZAÇÂO E DESMOBILIZAÇÂO EQUIPES PERFURAÇÂO E INSTALAÇÃO | J42: 4407
A43: 2.1 | B43: Código | C43: Banco | D43: Descrição | E43: Tipo | G43: Und | H43: Quant. | I43: Valor Unit | J43: Total
A44: Composição | B44: COMPOSIÇÃO - 006 | C44: Próprio | D44: Transporte de Comboio Perfuração | E44: TRAN - TRANSPORTES, CARGAS E DESCARGAS | G44: km | H44: 1 | I44: 4.59 | J44: 4.59
A45: Composição Auxiliar | B45: 5824 | C45: SINAPI | D45: CAMINHÃO TOCO, PBT 16.000 KG, CARGA ÚTIL MÁX. 10.685 KG, DIST. ENTRE EIXOS 4,8 M, POTÊNCIA 189 CV, INCLUSIVE CARROCERIA FIXA ABERTA DE MADEIRA P/ TRANSPORTE GERAL DE CARGA SECA, DIMEN. APROX. 2,5 X 7,00 X 0,50 M - CHP DIURNO. AF_06/2014 | E45: CHOR - CUSTOS HORÁRIOS DE MÁQUINAS E EQUIPAMENTOS | G45: CHP | H45: 0.01666 | I45: 213.13 | J45: 3.55
A46: Composição Auxiliar | B46: 5826 | C46: SINAPI | D46: CAMINHÃO TOCO, PBT 16.000 KG, CARGA ÚTIL MÁX. 10.685 KG, DIST. ENTRE EIXOS 4,8 M, POTÊNCIA 189 CV, INCLUSIVE CARROCERIA FIXA ABERTA DE MADEIRA P/ TRANSPORTE GERAL DE CARGA SECA, DIMEN. APROX. 2,5 X 7,00 X 0,50 M - CHI DIURNO. AF_06/2014 | E46: CHOR - CUSTOS HORÁRIOS DE MÁQUINAS E EQUIPAMENTOS | G46: CHI | H46: 0.01666 | I46: 62.19 | J46: 1.04
E47: MO sem LS => | F47: 0.4 | G47: LS => | H47: 0.44 | I47: MO com LS => | J47: 0.84
E48: Valor do BDI => | F48: 1.209006 | H48: Valor com BDI => | J48: 5.8
G49: Quant. => | H49: 300 | I49: Preço Total => | J49: 1740
A51: 2.2 | B51: Código | C51: Banco | D51: Descrição | E51: Tipo | G51: Und | H51: Quant. | I51: Valor Unit | J51: Total
A52: Composição | B52: COMPOSIÇÃO - 007 | C52: Próprio | D52: Transporte de Comboio Instalação | E52: TRAN - TRANSPORTES, CARGAS E DESCARGAS | G52: km | H52: 1 | I52: 5.78 | J52: 5.78
A53: Composição Auxiliar | B53: 5928 | C53: SINAPI | D53: GUINDAUTO HIDRÁULICO, CAPACIDADE MÁXIMA DE CARGA 6200 KG, MOMENTO MÁXIMO DE CARGA 11,7 TM, ALCANCE MÁXIMO HORIZONTAL 9,70 M, INCLUSIVE CAMINHÃO TOCO PBT 16.000 KG, POTÊNCIA DE 189 CV - CHP DIURNO. AF_06/2014 | E53: CHOR - CUSTOS HORÁRIOS DE MÁQUINAS E EQUIPAMENTOS | G53: CHP | H53: 0.01666 | I53: 272.82 | J53: 4.55
A54: Composição Auxiliar | B54: 5930 | C54: SINAPI | D54: GUINDAUTO HIDRÁULICO, CAPACIDADE MÁXIMA DE CARGA 6200 KG, MOMENTO MÁXIMO DE CARGA 11,7 TM, ALCANCE MÁXIMO HORIZONTAL 9,70 M, INCLUSIVE CAMINHÃO TOCO PBT 16.000 KG, POTÊNCIA DE 189 CV - CHI DIURNO. AF_06/2014 | E54: CHOR - CUSTOS HORÁRIOS DE MÁQUINAS E EQUIPAMENTOS | G54: CHI | H54: 0.01666 | I54: 73.84 | J54: 1.23
E55: MO sem LS => | F55: 0.45 | G55: LS => | H55: 0.51 | I55: MO com LS => | J55: 0.96
E56: Valor do BDI => | F56: 1.522452 | H56: Valor com BDI => | J56: 7.3
G57: Quant. => | H57: 300 | I57: Preço Total => | J57: 2190
A59: 2.3 | B59: Código | C59: Banco | D59: Descrição | E59: Tipo | G59: Und | H59: Quant. | I59: Valor Unit | J59: Total
A60: Composição | B60: COMPOSIÇÃO - 067 | C60: Próprio | D60: Transporte de Equipe Teste de Vazão | E60: TRAN - TRANSPORTES, CARGAS E DESCARGAS | G60: km | H60: 1 | I60: 2.52 | J60: 2.52
A61: Composição Auxiliar | B61: 73467 | C61: SINAPI | D61: CAMINHÃO TOCO, PBT 14.300 KG, CARGA ÚTIL MÁX. 9.710 KG, DIST. ENTRE EIXOS 3,56 M, POTÊNCIA 185 CV, INCLUSIVE CARROCERIA FIXA ABERTA DE MADEIRA P/ TRANSPORTE GERAL DE CARGA SECA, DIMEN. APROX. 2,50 X 6,50 X 0,50 M - CHP DIURNO. AF_06/2014 | E61: CHOR - CUSTOS HORÁRIOS DE MÁQUINAS E EQUIPAMENTOS | G61: CHP | H61: 0.0083 | I61: 244.26 | J61: 2.03
A62: Composição Auxiliar | B62: 91395 | C62: SINAPI | D62: CAMINHÃO TOCO, PBT 14.300 KG, CARGA ÚTIL MÁX. 9.710 KG, DIST. ENTRE EIXOS 3,56 M, POTÊNCIA 185 CV, INCLUSIVE CARROCERIA FIXA ABERTA DE MADEIRA P/ TRANSPORTE GERAL DE CARGA SECA, DIMEN. APROX. 2,50 X 6,50 X 0,50 M - CHI DIURNO. AF_06/2014 | E62: CHOR - CUSTOS HORÁRIOS DE MÁQUINAS E EQUIPAMENTOS | G62: CHI | H62: 0.0083 | I62: 59.38 | J62: 0.49
E63: MO sem LS => | F63: 0.2 | G63: LS => | H63: 0.22 | I63: MO com LS => | J63: 0.42
E64: Valor do BDI => | F64: 0.663768 | H64: Valor com BDI => | J64: 3.18
G65: Quant. => | H65: 150 | I65: Preço Total => | J65: 477
A67: 3 | D67: PERFURAÇÃO E COMPLETAÇÃO DE POÇO TUBULAR | J67: 32713.97
A68: 3.1 | B68: Código | C68: Banco | D68: Descrição | E68: Tipo | G68: Und | H68: Quant. | I68: Valor Unit | J68: Total
A69: Insumo | B69: 5051 | C69: ORSE | D69: Perfuraçao em rocha metassedimentar - metassedimento alterado / compacto dn 6" (poço 120m) | E69: Serviços | G69: m | H69: 1 | I69: 156.31 | J69: 156.31
E70: MO sem LS => | F70: 0 | G70: LS => | H70: 0 | I70: MO com LS => | J70: 0
E71: Valor do BDI => | F71: 41.17 | H71: Valor com BDI => | J71: 197.48
G72: Quant. => | H72: 90 | I72: Preço Total => | J72: 17773.2
A74: 3.2 | B74: Código | C74: Banco | D74: Descrição | E74: Tipo | G74: Und | H74: Quant. | I74: Valor Unit | J74: Total
A75: Insumo | B75: 5057 | C75: ORSE | D75: Perfuração rocha sedimentar sedimento / camadas inconsolidadas dn 12.1/2" - poço até 150m | E75: Serviços | G75: m | H75: 1 | I75: 247.66 | J75: 247.66
E76: MO sem LS => | F76: 0 | G76: LS => | H76: 0 | I76: MO com LS => | J76: 0
E77: Valor do BDI => | F77: 65.23 | H77: Valor com BDI => | J77: 312.89
G78: Quant. => | H78: 30 | I78: Preço Total => | J78: 9386.7
A80: 3.3 | B80: Código | C80: Banco | D80: Descrição | E80: Tipo | G80: Und | H80: Quant. | I80: Valor Unit | J80: Total
A81: Composição | B81: COMPOSIÇÃO - 011 | C81: Próprio | D81: Serviço de lançamento cimentação anelar, incluso materiais. | E81: SEDI - SERVIÇOS DIVERSOS | G81: m³ | H81: 1 | I81: 541.72 | J81: 541.72
A82: Composição Auxiliar | B82: 1903 | C82: ORSE | D82: Argamassa cimento e areia traço t-1 (1:3) - 1 saco cimento 50kg / 3 padiolas areia dim. 0.35 x 0.45 x 0.23 m - Confecção mecânica e transporte | E82: Argamassas | G82: m³ | H82: 1 | I82: 541.72 | J82: 541.72
E83: MO sem LS => | F83: 26.14 | G83: LS => | H83: 28.46 | I83: MO com LS => | J83: 54.6
E84: Valor do BDI => | F84: 142.689048 | H84: Valor com BDI => | J84: 684.41
G85: Quant. => | H85: 1.74 | I85: Preço Total => | J85: 1190.87
A87: 3.4 | B87: Código | C87: Banco | D87: Descrição | E87: Tipo | G87: Und | H87: Quant. | I87: Valor Unit | J87: Total
A88: Insumo | B88: 00009854 | C88: SINAPI | D88: TUBO PVC DE REVESTIMENTO GEOMECANICO NERVURADO STANDARD, DN = 154 MM, COMPRIMENTO = 2 M | E88: Material | G88: M | H88: 1 | I88: 115.12 | J88: 115.12
E89: MO sem LS => | F89: 0 | G89: LS => | H89: 0 | I89: MO com LS => | J89: 0
E90: Valor do BDI => | F90: 30.32 | H90: Valor com BDI => | J90: 145.44
G91: Quant. => | H91: 30 | I91: Preço Total => | J91: 4363.2
A93: 4 | D93: PÓS PERFURAÇÃO | J93: 11799.03
A94: 4.1 | B94: Código | C94: Banco | D94: Descrição | E94: Tipo | G94: Und | H94: Quant. | I94: Valor Unit | J94: Total
A95: Composição | B95: 6305 | C95: ORSE | D95: Desenvolvimento com Compressor 250psi / 750cfm | E95: Conversão InfoWOrca | G95: h | H95: 1 | I95: 411.16 | J95: 411.16
A96: Insumo | B96: 5030 | C96: ORSE | D96: Desenvolvimento com compressor 250psi - 750cfm h | E96: Serviços | G96: h | H96: 1 | I96: 411.16 | J96: 411.16
E97: MO sem LS => | F97: 0 | G97: LS => | H97: 0 | I97: MO com LS => | J97: 0
E98: Valor do BDI => | F98: 108.299544 | H98: Valor com BDI => | J98: 519.46
G99: Quant. => | H99: 2 | I99: Preço Total => | J99: 1038.92
A101: 4.2 | B101: Código | C101: Banco | D101: Descrição | E101: Tipo | G101: Und | H101: Quant. | I101: Valor Unit | J101: Total
A102: Composição | B102: COMPOSIÇÃO - 015 | C102: Próprio | D102: Inspeção ótica em poço tubular câmera com rotação de 360º, visada lateral, com fonte própria de luz, entregue vídeo em cores e marcação de profundidades. | E102: SEES - SERVIÇOS ESPECIAIS | G102: m | H102: 1 | I102: 9.42 | J102: 9.42
A103: Insumo | B103: H020050004 | C103: EMBASA | D103: APARELHO DE PERFILAGEM OPTICA | E103: Material | G103: M | H103: 1 | I103: 4.4 | J103: 4.4
A104: Insumo | B104: B590000022 | C104: EMBASA | D104: TECNICO MEDIO | E104: Mão de Obra | G104: H | H104: 0.0835 | I104: 60.1472 | J104: 5.02
E105: MO sem LS => | F105: 2.4 | G105: LS => | H105: 2.62 | I105: MO com LS => | J105: 5.02
E106: Valor do BDI => | F106: 2.481228 | H106: Valor com BDI => | J106: 11.9
G107: Quant. => | H107: 120 | I107: Preço Total => | J107: 1428
A109: 4.3 | B109: Código | C109: Banco | D109: Descrição | E109: Tipo | G109: Und | H109: Quant. | I109: Valor Unit | J109: Total
A110: Composição | B110: COMPOSIÇÃO - 053 | C110: Próprio | D110: Serviço de coleta e Análise Físico-Química e Bacteriológica | E110: SEDI - SERVIÇOS DIVERSOS | G110: un | H110: 1 | I110: 621.19 | J110: 621.19
A111: Composição Auxiliar | B111: 6312 | C111: ORSE | D111: Análise Físico-química da Água | E111: Conversão InfoWOrca | G111: un | H111: 1 | I111: 565.21 | J111: 565.21
A112: Composição Auxiliar | B112: 6313 | C112: ORSE | D112: Análise Bacteriológica da Água | E112: Conversão InfoWOrca | G112: un | H112: 1 | I112: 55.98 | J112: 55.98
E113: MO sem LS => | F113: 0 | G113: LS => | H113: 0 | I113: MO com LS => | J113: 0
E114: Valor do BDI => | F114: 163.621446 | H114: Valor com BDI => | J114: 784.81
G115: Quant. => | H115: 1 | I115: Preço Total => | J115: 784.81
A117: 4.4 | B117: Código | C117: Banco | D117: Descrição | E117: Tipo | G117: Und | H117: Quant. | I117: Valor Unit | J117: Total
A118: Composição | B118: 24.80.22 | C118: EMBASA | D118: Ensaio de bombeamento poço tubular incluso materiais e grupo gerador | E118: 2480 | G118: H | H118: 1 | I118: 255.47 | J118: 255.47
A119: Composição Auxiliar | B119: 24.00.15 | C119: EMBASA | D119: EQUIPE (3 PROFISSIONAIS CAMPO) - BOMBEIO | E119: 2400 | G119: H | H119: 1 | I119: 190.55 | J119: 190.55
A120: Insumo | B120: H020050001 | C120: EMBASA | D120: UNIDADE DE ENSAIO E BOMBEAMENTO - UEB1 ATE 150M3 NO SEDIMENTO | E120: Material | G120: H | H120: 1 | I120: 64.92 | J120: 64.92
E121: MO sem LS => | F121: 91.22 | G121: LS => | H121: 99.33 | I121: MO com LS => | J121: 190.55
E122: Valor do BDI => | F122: 67.290798 | H122: Valor com BDI => | J122: 322.76
G123: Quant. => | H123: 24 | I123: Preço Total => | J123: 7746.24
A125: 4.5 | B125: Código | C125: Banco | D125: Descrição | E125: Tipo | G125: Und | H125: Quant. | I125: Valor Unit | J125: Total
A126: Composição | B126: COMPOSIÇÃO - 014 | C126: Próprio | D126: Serviço de instalação de laje sanitária com dimensões (1,5x1,5x0,3) metros , incluso material. | E126: SEDI - SERVIÇOS DIVERSOS | G126: un | H126: 1 | I126: 634.05 | J126: 634.05
A127: Composição Auxiliar | B127: 92522 | C127: SINAPI | D127: MONTAGEM E DESMONTAGEM DE FÔRMA DE LAJE MACIÇA, PÉ-DIREITO SIMPLES, EM CHAPA DE MADEIRA COMPENSADA RESINADA, 8 UTILIZAÇÕES. AF_09/2020 | E127: FUES - FUNDAÇÕES E ESTRUTURAS | G127: m² | H127: 1.8 | I127: 38.4 | J127: 69.12
A128: Composição Auxiliar | B128: 93358 | C128: SINAPI | D128: ESCAVAÇÃO MANUAL DE VALA COM PROFUNDIDADE MENOR OU IGUAL A 1,30 M. AF_02/2021 | E128: MOVT - MOVIMENTO DE TERRA | G128: m³ | H128: 0.225 | I128: 80.78 | J128: 18.18
A129: Composição Auxiliar | B129: 94975 | C129: SINAPI | D129: CONCRETO FCK = 15MPA, TRAÇO 1:3,4:3,5 (EM MASSA SECA DE CIMENTO/ AREIA MÉDIA/ BRITA 1) - PREPARO MANUAL. AF_05/2021 | E129: FUES - FUNDAÇÕES E ESTRUTURAS | G129: m³ | H129: 0.675 | I129: 519.59 | J129: 350.72
A130: Composição Auxiliar | B130: 103670 | C130: SINAPI | D130: LANÇAMENTO COM USO DE BALDES, ADENSAMENTO E ACABAMENTO DE CONCRETO EM ESTRUTURAS. AF_02/2022 | E130: FUES - FUNDAÇÕES E ESTRUTURAS | G130: m³ | H130: 0.675 | I130: 290.42 | J130: 196.03
E131: MO sem LS => | F131: 116.8 | G131: LS => | H131: 127.2 | I131: MO com LS => | J131: 244
E132: Valor do BDI => | F132: 167.00877 | H132: Valor com BDI => | J132: 801.06
G133: Quant. => | H133: 1 | I133: Preço Total => | J133: 801.06
A135: 5 | D135: RESERVAÇÃO | J135: 27094.09
A136: 5.1 | B136: Código | C136: Banco | D136: Descrição | E136: Tipo | G136: Und | H136: Quant. | I136: Valor Unit | J136: Total
A137: Composição | B137: COMPOSIÇÃO - 059 | C137: Próprio | D137: Fornecimento e instalação de reservatório e base elevada 10 m³ | E137: ASTU - ASSENTAMENTO DE TUBOS E PECAS | G137: un | H137: 1 | I137: 25308.6 | J137: 25308.6
A138: Composição Auxiliar | B138: 92759 | C138: SINAPI | D138: ARMAÇÃO DE PILAR OU VIGA DE ESTRUTURA CONVENCIONAL DE CONCRETO ARMADO UTILIZANDO AÇO CA-60 DE 5,0 MM - MONTAGEM. AF_06/2022 | E138: FUES - FUNDAÇÕES E ESTRUTURAS | G138: KG | H138: 29.1 | I138: 14 | J138: 407.4
A139: Composição Auxiliar | B139: 92761 | C139: SINAPI | D139: ARMAÇÃO DE PILAR OU VIGA DE ESTRUTURA CONVENCIONAL DE CONCRETO ARMADO UTILIZANDO AÇO CA-50 DE 8,0 MM - MONTAGEM. AF_06/2022 | E139: FUES - FUNDAÇÕES E ESTRUTURAS | G139: KG | H139: 48 | I139: 12.31 | J139: 590.88
A140: Composição Auxiliar | B140: 93358 | C140: SINAPI | D140: ESCAVAÇÃO MANUAL DE VALA COM PROFUNDIDADE MENOR OU IGUAL A 1,30 M. AF_02/2021 | E140: MOVT - MOVIMENTO DE TERRA | G140: m³ | H140: 5.2 | I140: 80.78 | J140: 420.06
A141: Composição Auxiliar | B141: 92763 | C141: SINAPI | D141: ARMAÇÃO DE PILAR OU VIGA DE ESTRUTURA CONVENCIONAL DE CONCRETO ARMADO UTILIZANDO AÇO CA-50 DE 12,5 MM - MONTAGEM. AF_06/2022 | E141: FUES - FUNDAÇÕES E ESTRUTURAS | G141: KG | H141: 118.4 | I141: 9.19 | J141: 1088.1
A142: Composição Auxiliar | B142: 94970 | C142: SINAPI | D142: CONCRETO FCK = 20MPA, TRAÇO 1:2,7:3 (EM MASSA SECA DE CIMENTO/ AREIA MÉDIA/ BRITA 1) - PREPARO MECÂNICO COM BETONEIRA 600 L. AF_05/2021 | E142: FUES - FUNDAÇÕES E ESTRUTURAS | G142: m³ | H142: 4.89 | I142: 500.39 | J142: 2446.91
A143: Composição Auxiliar | B143: 103670 | C143: SINAPI | D143: LANÇAMENTO COM USO DE BALDES, ADENSAMENTO E ACABAMENTO DE CONCRETO EM ESTRUTURAS. AF_02/2022 | E143: FUES - FUNDAÇÕES E ESTRUTURAS | G143: m³ | H143: 6.85 | I143: 290.42 | J143: 1989.38
A144: Composição Auxiliar | B144: 84651 | C144: SINAPI | D144: PINTURA COM TINTA IMPERMEAVEL MINERAL EM PO, DUAS DEMAOS | E144: PINT - PINTURAS | G144: m² | H144: 28.66 | I144: 13.29 | J144: 380.89
A145: Composição Auxiliar | B145: 90776 | C145: SINAPI | D145: ENCARREGADO GERAL COM ENCARGOS COMPLEMENTARES | E145: SEDI - SERVIÇOS DIVERSOS | G145: H | H145: 1 | I145: 55.16 | J145: 55.16
A146: Composição Auxiliar | B146: 102482 | C146: SINAPI | D146: CONCRETO FCK = 25MPA, TRAÇO 1:2,2:2,5 (EM MASSA SECA DE CIMENTO/ AREIA MÉDIA/ SEIXO ROLADO) - PREPARO MECÂNICO COM BETONEIRA 600 L. AF_05/2021 | E146: FUES - FUNDAÇÕES E ESTRUTURAS | G146: m³ | H146: 1.96 | I146: 713.85 | J146: 1399.15
A147: Composição Auxiliar | B147: 92263 | C147: SINAPI | D147: FABRICAÇÃO DE FÔRMA PARA PILARES E ESTRUTURAS SIMILARES, EM CHAPA DE MADEIRA COMPENSADA RESINADA, E = 17 MM. AF_09/2020 | E147: FUES - FUNDAÇÕES E ESTRUTURAS | G147: m² | H147: 18.1 | I147: 156.69 | J147: 2836.09
A148: Composição Auxiliar | B148: 89272 | C148: SINAPI | D148: GUINDASTE HIDRÁULICO AUTOPROPELIDO, COM LANÇA TELESCÓPICA 28,80 M, CAPACIDADE MÁXIMA 30 T, POTÊNCIA 97 KW, TRAÇÃO 4 X 4 - CHP DIURNO. AF_11/2014 | E148: CHOR - CUSTOS HORÁRIOS DE MÁQUINAS E EQUIPAMENTOS | G148: CHP | H148: 13 | I148: 225.81 | J148: 2935.53
A149: Composição Auxiliar | B149: 5824 | C149: SINAPI | D149: CAMINHÃO TOCO, PBT 16.000 KG, CARGA ÚTIL MÁX. 10.685 KG, DIST. ENTRE EIXOS 4,8 M, POTÊNCIA 189 CV, INCLUSIVE CARROCERIA FIXA ABERTA DE MADEIRA P/ TRANSPORTE GERAL DE CARGA SECA, DIMEN. APROX. 2,5 X 7,00 X 0,50 M - CHP DIURNO. AF_06/2014 | E149: CHOR - CUSTOS HORÁRIOS DE MÁQUINAS E EQUIPAMENTOS | G149: CHP | H149: 24 | I149: 213.13 | J149: 5115.12
A150: Composição Auxiliar | B150: 88267 | C150: SINAPI | D150: ENCANADOR OU BOMBEIRO HIDRÁULICO COM ENCARGOS COMPLEMENTARES | E150: SEDI - SERVIÇOS DIVERSOS | G150: H | H150: 4 | I150: 27.39 | J150: 109.56
A151: Composição Auxiliar | B151: 88248 | C151: SINAPI | D151: AUXILIAR DE ENCANADOR OU BOMBEIRO HIDRÁULICO COM ENCARGOS COMPLEMENTARES | E151: SEDI - SERVIÇOS DIVERSOS | G151: H | H151: 4 | I151: 21.99 | J151: 87.96
A152: Insumo | B152: 00011677 | C152: SINAPI | D152: REGISTRO DE ESFERA, PVC, COM VOLANTE, VS, SOLDAVEL, DN 50 MM, COM CORPO DIVIDIDO | E152: Material | G152: UN | H152: 1 | I152: 32.78 | J152: 32.78
A153: Insumo | B153: 00003146 | C153: SINAPI | D153: FITA VEDA ROSCA EM ROLOS DE 18 MM X 10 M (L X C) | E153: Material | G153: UN | H153: 0.18 | I153: 3.93 | J153: 0.71
A154: Insumo | B154: 00037106 | C154: SINAPI | D154: CAIXA D'AGUA / RESERVATORIO EM POLIESTER REFORCADO COM FIBRA DE VIDRO, 10000 LITROS, COM TAMPA | E154: Material | G154: UN | H154: 1 | I154: 5073.93 | J154: 5073.93
A155: Insumo | B155: 00009875 | C155: SINAPI | D155: TUBO PVC, SOLDAVEL, DE 50 MM, AGUA FRIA (NBR-5648) | E155: Material | G155: M | H155: 15.2 | I155: 15.16 | J155: 230.43
A156: Insumo | B156: 00000113 | C156: SINAPI | D156: ADAPTADOR PVC SOLDAVEL CURTO COM BOLSA E ROSCA, 60 MM X 2", PARA AGUA FRIA | E156: Material | G156: UN | H156: 1 | I156: 10.97 | J156: 10.97
A157: Insumo | B157: 00003871 | C157: SINAPI | D157: LUVA SOLDAVEL COM ROSCA, PVC, 50 MM X 1 1/2", PARA AGUA FRIA PREDIAL | E157: Material | G157: UN | H157: 1 | I157: 17.95 | J157: 17.95
A158: Insumo | B158: 00003540 | C158: SINAPI | D158: JOELHO PVC, SOLDAVEL, 90 GRAUS, 50 MM, COR MARROM, PARA AGUA FRIA PREDIAL | E158: Material | G158: UN | H158: 5 | I158: 4.9 | J158: 24.5
A159: Insumo | B159: 00000099 | C159: SINAPI | D159: ADAPTADOR PVC SOLDAVEL, COM FLANGE E ANEL DE VEDACAO, 50 MM X 1 1/2", PARA CAIXA D'AGUA | E159: Material | G159: UN | H159: 2 | I159: 25.76 | J159: 51.52
A160: Insumo | B160: 00000119 | C160: SINAPI | D160: ADESIVO PLASTICO PARA PVC, BISNAGA COM 75 GR | E160: Material | G160: UN | H160: 0.45 | I160: 8.05 | J160: 3.62
E161: MO sem LS => | F161: 2216.34 | G161: LS => | H161: 2413.72 | I161: MO com LS => | J161: 4630.06
E162: Valor do BDI => | F162: 6666.28524 | H162: Valor com BDI => | J162: 31974.89
G163: Quant. => | H163: 0.8 | I163: Preço Total => | J163: 25579.91
A165: 5.2 | B165: Código | C165: Banco | D165: Descrição | E165: Tipo | G165: Und | H165: Quant. | I165: Valor Unit | J165: Total
A166: Composição | B166: COMPOSIÇÃO - 039 | C166: Próprio | D166: Fornecimento e execução de reservatório apoiado de 5 m³ | E166: SEDI - SERVIÇOS DIVERSOS | G166: un | H166: 1 | I166: 5992.49 | J166: 5992.49
A167: Composição Auxiliar | B167: 5928 | C167: SINAPI | D167: GUINDAUTO HIDRÁULICO, CAPACIDADE MÁXIMA DE CARGA 6200 KG, MOMENTO MÁXIMO DE CARGA 11,7 TM, ALCANCE MÁXIMO HORIZONTAL 9,70 M, INCLUSIVE CAMINHÃO TOCO PBT 16.000 KG, POTÊNCIA DE 189 CV - CHP DIURNO. AF_06/2014 | E167: CHOR - CUSTOS HORÁRIOS DE MÁQUINAS E EQUIPAMENTOS | G167: CHP | H167: 4 | I167: 272.82 | J167: 1091.28
A168: Composição Auxiliar | B168: 88309 | C168: SINAPI | D168: PEDREIRO COM ENCARGOS COMPLEMENTARES | E168: SEDI - SERVIÇOS DIVERSOS | G168: H | H168: 3 | I168: 28.16 | J168: 84.48
A169: Composição Auxiliar | B169: 88316 | C169: SINAPI | D169: SERVENTE COM ENCARGOS COMPLEMENTARES | E169: SEDI - SERVIÇOS DIVERSOS | G169: H | H169: 3 | I169: 20.42 | J169: 61.26
A170: Composição Auxiliar | B170: 88262 | C170: SINAPI | D170: CARPINTEIRO DE FORMAS COM ENCARGOS COMPLEMENTARES | E170: SEDI - SERVIÇOS DIVERSOS | G170: H | H170: 3 | I170: 27.78 | J170: 83.34
A171: Composição Auxiliar | B171: 102617 | C171: SINAPI | D171: CAIXA D´ÁGUA EM POLIÉSTER REFORÇADO COM FIBRA DE VIDRO, 5000 LITROS - FORNECIMENTO E INSTALAÇÃO. AF_06/2021 | E171: INHI - INSTALAÇÕES HIDROS SANITÁRIAS | G171: UN | H171: 1 | I171: 3517.25 | J171: 3517.25
A172: Composição Auxiliar | B172: 92783 | C172: SINAPI | D172: ARMAÇÃO DE LAJE DE UMA ESTRUTURA CONVENCIONAL DE CONCRETO ARMADO EM UMA EDIFICAÇÃO TÉRREA OU SOBRADO UTILIZANDO AÇO CA-60 DE 4,2 MM - MONTAGEM. AF_12/2015 | E172: FUES - FUNDAÇÕES E ESTRUTURAS | G172: KG | H172: 3.2 | I172: 18.07 | J172: 57.82
A173: Composição Auxiliar | B173: 92759 | C173: SINAPI | D173: ARMAÇÃO DE PILAR OU VIGA DE ESTRUTURA CONVENCIONAL DE CONCRETO ARMADO UTILIZANDO AÇO CA-60 DE 5,0 MM - MONTAGEM. AF_06/2022 | E173: FUES - FUNDAÇÕES E ESTRUTURAS | G173: KG | H173: 5.6 | I173: 14 | J173: 78.4
A174: Composição Auxiliar | B174: 94964 | C174: SINAPI | D174: CONCRETO FCK = 20MPA, TRAÇO 1:2,7:3 (EM MASSA SECA DE CIMENTO/ AREIA MÉDIA/ BRITA 1) - PREPARO MECÂNICO COM BETONEIRA 400 L. AF_05/2021 | E174: FUES - FUNDAÇÕES E ESTRUTURAS | G174: m³ | H174: 1.56 | I174: 513.2 | J174: 800.59
A175: Composição Auxiliar | B175: 84651 | C175: SINAPI | D175: PINTURA COM TINTA IMPERMEAVEL MINERAL EM PO, DUAS DEMAOS | E175: PINT - PINTURAS | G175: m² | H175: 2.7 | I175: 13.29 | J175: 35.88
A176: Composição Auxiliar | B176: 92783 | C176: SINAPI | D176: ARMAÇÃO DE LAJE DE UMA ESTRUTURA CONVENCIONAL DE CONCRETO ARMADO EM UMA EDIFICAÇÃO TÉRREA OU SOBRADO UTILIZANDO AÇO CA-60 DE 4,2 MM - MONTAGEM. AF_12/2015 | E176: FUES - FUNDAÇÕES E ESTRUTURAS | G176: KG | H176: 3.2 | I176: 18.07 | J176: 57.82
A177: Insumo | B177: 00007155 | C177: SINAPI | D177: TELA DE ACO SOLDADA NERVURADA, CA-60, Q-138, (2,20 KG/M2), DIAMETRO DO FIO = 4,2 MM, LARGURA = 2,45 M, ESPACAMENTO DA MALHA = 10 X 10 CM | E177: Material | G177: m² | H177: 6.16 | I177: 20.19 | J177: 124.37
E178: MO sem LS => | F178: 300.93 | G178: LS => | H178: 327.73 | I178: MO com LS => | J178: 628.66
E179: Valor do BDI => | F179: 1578.421866 | H179: Valor com BDI => | J179: 7570.91
G180: Quant. => | H180: 0.2 | I180: Preço Total => | J180: 1514.18
A182: 6 | D182: BEBEDOURO | J182: 1951.4
A183: 6.1 | B183: Código | C183: Banco | D183: Descrição | E183: Tipo | G183: Und | H183: Quant. | I183: Valor Unit | J183: Total
A184: Composição | B184: COMPOSIÇÃO - 017 | C184: Próprio | D184: Serviço de execução do bebedouro em concreto armado, incluso materiais. | E184: SEDI - SERVIÇOS DIVERSOS | G184: un | H184: 1 | I184: 1544.56 | J184: 1544.56
A185: Composição Auxiliar | B185: 5928 | C185: SINAPI | D185: GUINDAUTO HIDRÁULICO, CAPACIDADE MÁXIMA DE CARGA 6200 KG, MOMENTO MÁXIMO DE CARGA 11,7 TM, ALCANCE MÁXIMO HORIZONTAL 9,70 M, INCLUSIVE CAMINHÃO TOCO PBT 16.000 KG, POTÊNCIA DE 189 CV - CHP DIURNO. AF_06/2014 | E185: CHOR - CUSTOS HORÁRIOS DE MÁQUINAS E EQUIPAMENTOS | G185: CHP | H185: 2 | I185: 272.82 | J185: 545.64
A186: Composição Auxiliar | B186: 87445 | C186: SINAPI | D186: BETONEIRA CAPACIDADE NOMINAL 400 L, CAPACIDADE DE MISTURA 310 L, MOTOR A DIESEL POTÊNCIA 5,0 HP, SEM CARREGADOR - CHP DIURNO. AF_05/2023 | E186: CHOR - CUSTOS HORÁRIOS DE MÁQUINAS E EQUIPAMENTOS | G186: CHP | H186: 0.5 | I186: 5.38 | J186: 2.69
A187: Composição Auxiliar | B187: 88377 | C187: SINAPI | D187: OPERADOR DE BETONEIRA ESTACIONÁRIA/MISTURADOR COM ENCARGOS COMPLEMENTARES | E187: SEDI - SERVIÇOS DIVERSOS | G187: H | H187: 0.5 | I187: 25.33 | J187: 12.67
A188: Composição Auxiliar | B188: 88310 | C188: SINAPI | D188: PINTOR COM ENCARGOS COMPLEMENTARES | E188: SEDI - SERVIÇOS DIVERSOS | G188: H | H188: 0.3 | I188: 29.64 | J188: 8.89
A189: Composição Auxiliar | B189: 100301 | C189: SINAPI | D189: AJUDANTE DE PINTOR COM ENCARGOS COMPLEMENTARES | E189: SEDI - SERVIÇOS DIVERSOS | G189: H | H189: 0.1 | I189: 24.26 | J189: 2.43
A190: Composição Auxiliar | B190: 88245 | C190: SINAPI | D190: ARMADOR COM ENCARGOS COMPLEMENTARES | E190: SEDI - SERVIÇOS DIVERSOS | G190: H | H190: 3 | I190: 27.92 | J190: 83.76
A191: Composição Auxiliar | B191: 88262 | C191: SINAPI | D191: CARPINTEIRO DE FORMAS COM ENCARGOS COMPLEMENTARES | E191: SEDI - SERVIÇOS DIVERSOS | G191: H | H191: 2 | I191: 27.78 | J191: 55.56
A192: Composição Auxiliar | B192: 88316 | C192: SINAPI | D192: SERVENTE COM ENCARGOS COMPLEMENTARES | E192: SEDI - SERVIÇOS DIVERSOS | G192: H | H192: 5 | I192: 20.42 | J192: 102.1
A193: Composição Auxiliar | B193: 88309 | C193: SINAPI | D193: PEDREIRO COM ENCARGOS COMPLEMENTARES | E193: SEDI - SERVIÇOS DIVERSOS | G193: H | H193: 4 | I193: 28.16 | J193: 112.64
A194: Insumo | B194: 00043055 | C194: SINAPI | D194: ACO CA-50, 12,5 MM OU 16,0 MM, VERGALHAO | E194: Material | G194: KG | H194: 12 | I194: 6.86 | J194: 82.32
A195: Insumo | B195: 00043059 | C195: SINAPI | D195: ACO CA-60, 4,2 MM, OU 5,0 MM, OU 6,0 MM, OU 7,0 MM, VERGALHAO | E195: Material | G195: KG | H195: 13 | I195: 7.49 | J195: 97.37
A196: Insumo | B196: 00000032 | C196: SINAPI | D196: ACO CA-50, 6,3 MM, VERGALHAO | E196: Material | G196: KG | H196: 6 | I196: 8.35 | J196: 50.1
A197: Insumo | B197: 00000370 | C197: SINAPI | D197: AREIA MEDIA - POSTO JAZIDA/FORNECEDOR (RETIRADO NA JAZIDA, SEM TRANSPORTE) | E197: Material | G197: m³ | H197: 0.32 | I197: 130 | J197: 41.6
A198: Insumo | B198: 00001379 | C198: SINAPI | D198: CIMENTO PORTLAND COMPOSTO CP II-32 | E198: Material | G198: KG | H198: 127 | I198: 0.76 | J198: 96.52
A199: Insumo | B199: 00004718 | C199: SINAPI | D199: PEDRA BRITADA N. 2 (19 A 38 MM) POSTO PEDREIRA/FORNECEDOR, SEM FRETE | E199: Material | G199: m³ | H199: 0.08 | I199: 128.37 | J199: 10.27
A200: Insumo | B200: 00004721 | C200: SINAPI | D200: PEDRA BRITADA N. 1 (9,5 a 19 MM) POSTO PEDREIRA/FORNECEDOR, SEM FRETE | E200: Material | G200: m³ | H200: 0.23 | I200: 127.69 | J200: 29.37
A201: Insumo | B201: 00003767 | C201: SINAPI | D201: LIXA EM FOLHA PARA PAREDE OU MADEIRA, NUMERO 120, COR VERMELHA | E201: Material | G201: UN | H201: 0.12 | I201: 1.31 | J201: 0.16
A202: Insumo | B202: 00007356 | C202: SINAPI | D202: TINTA LATEX ACRILICA PREMIUM, COR BRANCO FOSCO | E202: Material | G202: L | H202: 0.18 | I202: 29.67 | J202: 5.34
A203: Insumo | B203: 00043681 | C203: SINAPI | D203: CHAPA/PAINEL DE MADEIRA COMPENSADA RESINADA (MADEIRITE RESINADO ROSA) PARA FORMA DE CONCRETO, DE 2200 x 1100 MM, E = 8 A 12 MM | E203: Material | G203: m² | H203: 7.3 | I203: 28.1 | J203: 205.13
E204: MO sem LS => | F204: 165.8 | G204: LS => | H204: 180.56 | I204: MO com LS => | J204: 346.36
E205: Valor do BDI => | F205: 406.837104 | H205: Valor com BDI => | J205: 1951.4
G206: Quant. => | H206: 1 | I206: Preço Total => | J206: 1951.4
A208: 7 | D208: CHAFARIZ | J208: 1331.14
A209: 7.1 | B209: Código | C209: Banco | D209: Descrição | E209: Tipo | G209: Und | H209: Quant. | I209: Valor Unit | J209: Total
A210: Composição | B210: COMPOSIÇÃO - 045 | C210: Próprio | D210: Fornecimento de material e instalação do chafariz | E210: ASTU - ASSENTAMENTO DE TUBOS E PECAS | G210: un | H210: 1 | I210: 1053.62 | J210: 1053.62
A211: Composição Auxiliar | B211: 88267 | C211: SINAPI | D211: ENCANADOR OU BOMBEIRO HIDRÁULICO COM ENCARGOS COMPLEMENTARES | E211: SEDI - SERVIÇOS DIVERSOS | G211: H | H211: 2 | I211: 27.39 | J211: 54.78
A212: Composição Auxiliar | B212: 88248 | C212: SINAPI | D212: AUXILIAR DE ENCANADOR OU BOMBEIRO HIDRÁULICO COM ENCARGOS COMPLEMENTARES | E212: SEDI - SERVIÇOS DIVERSOS | G212: H | H212: 2 | I212: 21.99 | J212: 43.98
A213: Composição Auxiliar | B213: 93358 | C213: SINAPI | D213: ESCAVAÇÃO MANUAL DE VALA COM PROFUNDIDADE MENOR OU IGUAL A 1,30 M. AF_02/2021 | E213: MOVT - MOVIMENTO DE TERRA | G213: m³ | H213: 0.09499 | I213: 80.78 | J213: 7.67
A214: Composição Auxiliar | B214: 92270 | C214: SINAPI | D214: FABRICAÇÃO DE FÔRMA PARA VIGAS, COM MADEIRA SERRADA, E = 25 MM. AF_09/2020 | E214: FUES - FUNDAÇÕES E ESTRUTURAS | G214: m² | H214: 0.628 | I214: 214.68 | J214: 134.82
A215: Composição Auxiliar | B215: 94975 | C215: SINAPI | D215: CONCRETO FCK = 15MPA, TRAÇO 1:3,4:3,5 (EM MASSA SECA DE CIMENTO/ AREIA MÉDIA/ BRITA 1) - PREPARO MANUAL. AF_05/2021 | E215: FUES - FUNDAÇÕES E ESTRUTURAS | G215: m³ | H215: 0.157 | I215: 519.59 | J215: 81.58
A216: Composição Auxiliar | B216: 2171 | C216: ORSE | D216: Piso cimentado liso traço 1:5, e = 3 cm, c/ junta plástica 3 x 27 mm | E216: Pisos : Cimentados, em Concreto Simples, tipo Tech-Stone e de Alta Resistência | G216: m² | H216: 0.785 | I216: 52.58 | J216: 41.28
A217: Composição Auxiliar | B217: 87904 | C217: SINAPI | D217: CHAPISCO APLICADO EM ALVENARIA (COM PRESENÇA DE VÃOS) E ESTRUTURAS DE CONCRETO DE FACHADA, COM COLHER DE PEDREIRO. ARGAMASSA TRAÇO 1:3 COM PREPARO MANUAL. AF_10/2022 | E217: REVE - REVESTIMENTO E TRATAMENTO DE SUPERFÍCIES | G217: m² | H217: 0.314 | I217: 8.5 | J217: 2.67
A218: Composição Auxiliar | B218: 87529 | C218: SINAPI | D218: MASSA ÚNICA, EM ARGAMASSA TRAÇO 1:2:8, PREPARO MECÂNICO, APLICADA MANUALMENTE EM PAREDES INTERNAS DE AMBIENTES COM ÁREA ENTRE 5M² E 10M², E = 17,5MM, COM TALISCAS. AF_03/2024 | E218: REVE - REVESTIMENTO E TRATAMENTO DE SUPERFÍCIES | G218: m² | H218: 0.314 | I218: 36.84 | J218: 11.57
A219: Composição Auxiliar | B219: 84651 | C219: SINAPI | D219: PINTURA COM TINTA IMPERMEAVEL MINERAL EM PO, DUAS DEMAOS | E219: PINT - PINTURAS | G219: m² | H219: 0.314 | I219: 13.29 | J219: 4.17
... 206 more rows

Sheet Resumo Totalmente
D1: Obra: | E1: Bancos | F1: B.D.I. | I1: Encargos Sociais
A2: 1ªSR/MG | D2: PERFURAÇÃO E INSTALAÇÃO DE POÇO TUBULAR TOTALMENTE REVESTIDO - 150m | E2: SINAPI - 09/2024 - Minas Gerais SBC - 10/2024 - Minas Gerais SICRO3 - 04/2024 - Minas Gerais ORSE - 06/2024 - Sergipe SEINFRA - 028 - Ceará CPOS/CDHU - 09/2024 - São Paulo FDE - 07/2024 - São Paulo EMBASA - 05/2024 - Bahia | F2: 26,34% | I2: Não Desonerado: Horista: 108,90% Mensalista: 67,79%
A3: Planilha Orçamentária Resumida
A4: Item | D4: Descrição | J4: Total | K4: Peso (%)
A5: 1 | D5: SERVIÇOS PRELIMINARES | J5: 9804.7 | K5: =J5 / 232426.4 -> 0.04218410645
A6: 2 | D6: MOBILIZAÇÂO E DESMOBILIZAÇÂO EQUIPE CAMPO | J6: 4884 | K6: =J6 / 232426.4 -> 0.0210131035
A7: 3 | D7: PERFURAÇÃO E COMPLETAÇÃO DE POÇO TUBULAR | J7: 108450.81 | K7: =J7 / 232426.4 -> 0.4666028042
A8: 4 | D8: PÓS PERFURAÇÃO | J8: 12156.03 | K8: =J8 / 232426.4 -> 0.05230055622
A9: 5 | D9: RESERVAÇÃO | J9: 27094.09 | K9: =J9 / 232426.4 -> 0.1165706219
A10: 6 | D10: BEBEDOURO | J10: 1951.4 | K10: =J10 / 232426.4 -> 0.008395776039
A11: 7 | D11: CHAFARIZ | J11: 1331.14 | K11: =J11 / 232426.4 -> 0.005727146314
A12: 8 | D12: CAVALETE | J12: 2163.96 | K12: =J12 / 232426.4 -> 0.0093103021
A13: 9 | D13: INSTALAÇÕES HIDRÁULICAS POÇO E ADUTORA | J13: 21026.04 | K13: =J13 / 232426.4 -> 0.0904632176
A14: 10 | D14: ESTRUTURA DE FIXAÇÃO PARA MÓDULOS FOTOVOLTÁICOS | J14: 5111.04 | K14: =J14 / 232426.4 -> 0.02198992885
A15: 11 | D15: INSTALAÇÕES ELÉTRICAS | J15: 19945.94 | K15: =J15 / 232426.4 -> 0.08581615514
A16: 12 | D16: URBANIZAÇÃO | J16: 4225.36 | K16: =J16 / 232426.4 -> 0.01817934624
A17: 13 | D17: OUTROS SERVIÇOS E INSUMOS EXCEPCIONAIS | J17: 14281.89 | K17: =J17 / 232426.4 -> 0.06144693546
G19: Total sem BDI | I19: 185192.5
G20: Total do BDI | I20: 47233.9
G21: Total Geral | I21: 232426.4
A23: _______________________________________________________________ AR/GSA/UEA

Sheet Orçamento Sintético (T)
D1: Obra: | E1: Bancos | G1: B.D.I. | I1: Encargos Sociais
A2: 1ªSR/MG | D2: PERFURAÇÃO E INSTALAÇÃO DE POÇO TUBULAR TOTALMENTE REVESTIDO - 150m | E2: SINAPI - 09/2024 - Minas Gerais SBC - 10/2024 - Minas Gerais SICRO3 - 04/2024 - Minas Gerais ORSE - 06/2024 - Sergipe SEINFRA - 028 - Ceará CPOS/CDHU - 09/2024 - São Paulo FDE - 07/2024 - São Paulo EMBASA - 05/2024 - Bahia | G2: 26,34% | I2: Não Desonerado: Horista: 108,90% Mensalista: 67,79%
A3: Orçamento Sintético
A4: Item | B4: Código | C4: Banco | D4: Descrição | E4: Und | F4: Quant. | G4: Valor Unit | H4: Valor Unit com BDI | I4: Total | J4: Peso (%)
A5: 1 | D5: SERVIÇOS PRELIMINARES | I5: 9804.7 | J5: =I5 / 232426.4 -> 0.04218410645
A6: 1.1 | B6: COMPOSIÇÃO - 050 | C6: Próprio | D6: Administração Local da Obra - Poço Totalmente Revestido | E6: un | F6: 1 | G6: 1972.11 | H6: =ROUND(G6 * (1 + 26.34 / 100), 2) -> 2491.56 | I6: =ROUND(F6 * H6, 2) -> 2491.56 | J6: =I6 / 232426.4 -> 0.01071978054
A7: 1.2 | B7: COMPOSIÇÃO - 003 | C7: Próprio | D7: Serviço de locação Geológica de campo com relatório hidro geológico e perfil construtivo e geológico esperado. Relatório de Viabilidade de implantação das estruturas e vistorias preliminares | E7: un | F7: 1 | G7: 590.3 | H7: =ROUND(G7 * (1 + 26.34 / 100), 2) -> 745.79 | I7: =ROUND(F7 * H7, 2) -> 745.79 | J7: =I7 / 232426.4 -> 0.003208714673
A8: 1.3 | B8: 103689 | C8: SINAPI | D8: FORNECIMENTO E INSTALAÇÃO DE PLACA DE OBRA COM CHAPA GALVANIZADA E ESTRUTURA DE MADEIRA. AF_03/2022_PS | E8: m² | F8: 0.72 | G8: 487.37 | H8: =ROUND(G8 * (1 + 26.34 / 100), 2) -> 615.74 | I8: =ROUND(F8 * H8, 2) -> 443.33 | J8: =I8 / 232426.4 -> 0.001907399504
A9: 1.4 | B9: COMPOSIÇÃO - 052 | C9: Próprio | D9: Taxas e emolumentos fiscais , administrativos para obtenção outorga e outros | E9: un | F9: 1 | G9: 4847.25 | H9: =ROUND(G9 * (1 + 26.34 / 100), 2) -> 6124.02 | I9: =ROUND(F9 * H9, 2) -> 6124.02 | J9: =I9 / 232426.4 -> 0.02634821173
A10: 2 | D10: MOBILIZAÇÂO E DESMOBILIZAÇÂO EQUIPE CAMPO | I10: 4884 | J10: =I10 / 232426.4 -> 0.0210131035
A11: 2.1 | B11: COMPOSIÇÃO - 006 | C11: Próprio | D11: Transporte de Comboio Perfuração | E11: km | F11: 300 | G11: 4.59 | H11: =ROUND(G11 * (1 + 26.34 / 100), 2) -> 5.8 | I11: =ROUND(F11 * H11, 2) -> 1740 | J11: =I11 / 232426.4 -> 0.007486240806
A12: 2.2 | B12: COMPOSIÇÃO - 007 | C12: Próprio | D12: Transporte de Comboio Instalação | E12: km | F12: 300 | G12: 5.78 | H12: =ROUND(G12 * (1 + 26.34 / 100), 2) -> 7.3 | I12: =ROUND(F12 * H12, 2) -> 2190 | J12: =I12 / 232426.4 -> 0.009422337566
A13: 2.3 | B13: COMPOSIÇÃO - 067 | C13: Próprio | D13: Transporte de Equipe Teste de Vazão | E13: km | F13: 300 | G13: 2.52 | H13: =ROUND(G13 * (1 + 26.34 / 100), 2) -> 3.18 | I13: =ROUND(F13 * H13, 2) -> 954 | J13: =I13 / 232426.4 -> 0.004104525131
A14: 3 | D14: PERFURAÇÃO E COMPLETAÇÃO DE POÇO TUBULAR | I14: 108450.81 | J14: =I14 / 232426.4 -> 0.4666028042
A15: 3.2 | B15: COMPOSIÇÃO - 038 | C15: Próprio | D15: Perfuração diâmetro de Ø 12 1/4" em rocha - incluso mão de obra para instalação do revestimento e completação anelar | E15: m | F15: 150 | G15: 326.11 | H15: =ROUND(G15 * (1 + 26.34 / 100), 2) -> 412.01 | I15: =ROUND(F15 * H15, 2) -> 61801.5 | J15: =I15 / 232426.4 -> 0.2658970754
A16: 3.3 | B16: 5073 | C16: ORSE | D16: Fornecimento de pré-filtro comum m3 | E16: m³ | F16: 6.96 | G16: 1619.38 | H16: =ROUND(G16 * (1 + 15.28 / 100), 2) &CHAR(10)& "(15.28%)" -> 1866,82 (15.28%) | I16: =ROUND((F16 * 1 ) * ROUND(G16 * (1 + 15.28 / 100), 2), 2) -> 12993.07 | J16: =I16 / 232426.4 -> 0.05590186829
A17: 3.4 | B17: 5091 | C17: ORSE | D17: Revestimento filtro pvc geomecânico reforçado dn 150mm | E17: m | F17: 16 | G17: 221.38 | H17: =ROUND(G17 * (1 + 26.34 / 100), 2) -> 279.69 | I17: =ROUND(F17 * H17, 2) -> 4475.04 | J17: =I17 / 232426.4 -> 0.01925357877
A18: 3.5 | B18: 5024 | C18: ORSE | D18: Centralizador em 6" | E18: un | F18: 10 | G18: 267.02 | H18: =ROUND(G18 * (1 + 26.34 / 100), 2) -> 337.35 | I18: =ROUND(F18 * H18, 2) -> 3373.5 | J18: =I18 / 232426.4 -> 0.01451427204
A19: 3.6 | B19: 00009850 | C19: SINAPI | D19: TUBO PVC DE REVESTIMENTO GEOMECANICO NERVURADO REFORCADO, DN = 150 MM, COMPRIMENTO = 2 M | E19: M | F19: 134 | G19: 147.75 | H19: =ROUND(G19 * (1 + 26.34 / 100), 2) -> 186.67 | I19: =ROUND(F19 * H19, 2) -> 25013.78 | J19: =I19 / 232426.4 -> 0.1076202187
A20: 3.7 | B20: COMPOSIÇÃO - 011 | C20: Próprio | D20: Serviço de lançamento cimentação anelar, incluso materiais. | E20: m³ | F20: 1.16 | G20: 541.72 | H20: =ROUND(G20 * (1 + 26.34 / 100), 2) -> 684.41 | I20: =ROUND(F20 * H20, 2) -> 793.92 | J20: =I20 / 232426.4 -> 0.003415790977
A21: 4 | D21: PÓS PERFURAÇÃO | I21: 12156.03 | J21: =I21 / 232426.4 -> 0.05230055622
A22: 4.1 | B22: 6305 | C22: ORSE | D22: Desenvolvimento com Compressor 250psi / 750cfm | E22: h | F22: 2 | G22: 411.16 | H22: =ROUND(G22 * (1 + 26.34 / 100), 2) -> 519.46 | I22: =ROUND(F22 * H22, 2) -> 1038.92 | J22: =I22 / 232426.4 -> 0.004469888102
A23: 4.3 | B23: COMPOSIÇÃO - 015 | C23: Próprio | D23: Inspeção ótica em poço tubular câmera com rotação de 360º, visada lateral, com fonte própria de luz, entregue vídeo em cores e marcação de profundidades. | E23: m | F23: 150 | G23: 9.42 | H23: =ROUND(G23 * (1 + 26.34 / 100), 2) -> 11.9 | I23: =ROUND(F23 * H23, 2) -> 1785 | J23: =I23 / 232426.4 -> 0.007679850482
A24: 4.5 | B24: COMPOSIÇÃO - 053 | C24: Próprio | D24: Serviço de coleta e Análise Físico-Química e Bacteriológica | E24: un | F24: 1 | G24: 621.19 | H24: =ROUND(G24 * (1 + 26.34 / 100), 2) -> 784.81 | I24: =ROUND(F24 * H24, 2) -> 784.81 | J24: =I24 / 232426.4 -> 0.003376595774
A25: 4.6 | B25: COMPOSIÇÃO - 014 | C25: Próprio | D25: Serviço de instalação de laje sanitária com dimensões (1,5x1,5x0,3) , incluso material. | E25: un | F25: 1 | G25: 634.05 | H25: =ROUND(G25 * (1 + 26.34 / 100), 2) -> 801.06 | I25: =ROUND(F25 * H25, 2) -> 801.06 | J25: =I25 / 232426.4 -> 0.003446510379
A26: 4.7 | B26: 24.80.22 | C26: EMBASA | D26: Ensaio de bombeamento poço tubular incluso materiais e grupo gerador | E26: H | F26: 24 | G26: 255.47 | H26: =ROUND(G26 * (1 + 26.34 / 100), 2) -> 322.76 | I26: =ROUND(F26 * H26, 2) -> 7746.24 | J26: =I26 / 232426.4 -> 0.03332771148
A27: 5 | D27: RESERVAÇÃO | I27: 27094.09 | J27: =I27 / 232426.4 -> 0.1165706219
A28: 5.1 | B28: COMPOSIÇÃO - 059 | C28: Próprio | D28: Fornecimento e instalação de reservatório e base elevada 10 m³ | E28: un | F28: 0.8 | G28: 25308.6 | H28: =ROUND(G28 * (1 + 26.34 / 100), 2) -> 31974.89 | I28: =ROUND(F28 * H28, 2) -> 25579.91 | J28: =I28 / 232426.4 -> 0.1100559575
A29: 5.2 | B29: COMPOSIÇÃO - 039 | C29: Próprio | D29: Fornecimento e execução de reservatório apoiado de 5 m³ | E29: un | F29: 0.2 | G29: 5992.49 | H29: =ROUND(G29 * (1 + 26.34 / 100), 2) -> 7570.91 | I29: =ROUND(F29 * H29, 2) -> 1514.18 | J29: =I29 / 232426.4 -> 0.006514664427
A30: 6 | D30: BEBEDOURO | I30: 1951.4 | J30: =I30 / 232426.4 -> 0.008395776039
A31: 6.1 | B31: COMPOSIÇÃO - 017 | C31: Próprio | D31: Serviço de execução do bebedouro em concreto armado, incluso materiais. | E31: un | F31: 1 | G31: 1544.56 | H31: =ROUND(G31 * (1 + 26.34 / 100), 2) -> 1951.4 | I31: =ROUND(F31 * H31, 2) -> 1951.4 | J31: =I31 / 232426.4 -> 0.008395776039
A32: 7 | D32: CHAFARIZ | I32: 1331.14 | J32: =I32 / 232426.4 -> 0.005727146314
A33: 7.1 | B33: COMPOSIÇÃO - 045 | C33: Próprio | D33: Fornecimento de material e instalação do chafariz | E33: un | F33: 1 | G33: 1053.62 | H33: =ROUND(G33 * (1 + 26.34 / 100), 2) -> 1331.14 | I33: =ROUND(F33 * H33, 2) -> 1331.14 | J33: =I33 / 232426.4 -> 0.005727146314
A34: 8 | D34: CAVALETE | I34: 2163.96 | J34: =I34 / 232426.4 -> 0.0093103021
A35: 8.1 | B35: COMPOSIÇÃO - 018 | C35: Próprio | D35: Fornecimento de conexões e Instalação do Cavalete com hidrômetro e clorador de pastilhas | E35: un | F35: 1 | G35: 1712.81 | H35: =ROUND(G35 * (1 + 26.34 / 100), 2) -> 2163.96 | I35: =ROUND(F35 * H35, 2) -> 2163.96 | J35: =I35 / 232426.4 -> 0.0093103021
A36: 9 | D36: INSTALAÇÕES HIDRÁULICAS POÇO E ADUTORA | I36: 21026.04 | J36: =I36 / 232426.4 -> 0.0904632176
A37: 9.1 | B37: COMPOSIÇÃO - 020 | C37: Próprio | D37: Fornecimento e instalação da rede adutora poço-reservatório-bebedouro em PN80 e DN50MM | E37: m | F37: 400 | G37: 28.27 | H37: =ROUND(G37 * (1 + 26.34 / 100), 2) -> 35.72 | I37: =ROUND(F37 * H37, 2) -> 14288 | J37: =I37 / 232426.4 -> 0.06147322335
A38: 9.2 | B38: COMPOSIÇÃO - 019 | C38: Próprio | D38: Montagem hidráulica do equipamento de bombeamento | E38: un | F38: 1 | G38: 148.14 | H38: =ROUND(G38 * (1 + 26.34 / 100), 2) -> 187.16 | I38: =ROUND(F38 * H38, 2) -> 187.16 | J38: =I38 / 232426.4 -> 0.0008052441547
A39: 9.3 | B39: 00038200 | C39: SINAPI | D39: CORDA DE POLIAMIDA 12 MM TIPO BOMBEIRO, PARA TRABALHO EM ALTURA | E39: 100M | F39: 0.93 | G39: 635.12 | H39: =ROUND(G39 * (1 + 15.28 / 100), 2) &CHAR(10)& "(15.28%)" -> 732,17 (15.28%) | I39: =ROUND((F39 * 1 ) * ROUND(G39 * (1 + 15.28 / 100), 2), 2) -> 680.92 | J39: =I39 / 232426.4 -> 0.002929615569
A40: 9.4 | B40: 00009860 | C40: SINAPI | D40: TUBO PVC, ROSCAVEL, 2", PARA AGUA FRIA PREDIAL | E40: M | F40: 90 | G40: 44.05 | H40: =ROUND(G40 * (1 + 26.34 / 100), 2) -> 55.65 | I40: =ROUND(F40 * H40, 2) -> 5008.5 | J40: =I40 / 232426.4 -> 0.02154875694
A41: 9.5 | B41: 00003912 | C41: SINAPI | D41: LUVA DE FERRO GALVANIZADO, COM ROSCA BSP, DE 2" | E41: UN | F41: 16 | G41: 35.91 | H41: =ROUND(G41 * (1 + 26.34 / 100), 2) -> 45.37 | I41: =ROUND(F41 * H41, 2) -> 725.92 | J41: =I41 / 232426.4 -> 0.003123225245
A42: 9.6 | B42: 5128 | C42: ORSE | D42: Tampa de poço galvanizada em 6" un | E42: un | F42: 1 | G42: 107.28 | H42: =ROUND(G42 * (1 + 26.34 / 100), 2) -> 135.54 | I42: =ROUND(F42 * H42, 2) -> 135.54 | J42: =I42 / 232426.4 -> 0.0005831523441
A43: 11 | D43: ESTRUTURA DE FIXAÇÃO PARA MÓDULOS FOTOVOLTÁICOS | I43: 5111.04 | J43: =I43 / 232426.4 -> 0.02198992885
A44: 11.1 | B44: COMPOSIÇÃO - 022 | C44: Próprio | D44: Serviço de fixação de estruturas para os módulos fotovoltaicos e suportes de concreto, incluso materiais. | E44: m² | F44: 16 | G44: 252.84 | H44: =ROUND(G44 * (1 + 26.34 / 100), 2) -> 319.44 | I44: =ROUND(F44 * H44, 2) -> 5111.04 | J44: =I44 / 232426.4 -> 0.02198992885
A45: 12 | D45: INSTALAÇÕES ELÉTRICAS | I45: 19945.94 | J45: =I45 / 232426.4 -> 0.08581615514
A46: 12.1 | B46: COMPOSIÇÃO - 021 | C46: Próprio | D46: Montagem e instalação elétrica do kit de bombeamento e sistema fotovoltaico inclusive sistema de aterramento. | E46: un | F46: 1 | G46: 1077.29 | H46: =ROUND(G46 * (1 + 26.34 / 100), 2) -> 1361.05 | I46: =ROUND(F46 * H46, 2) -> 1361.05 | J46: =I46 / 232426.4 -> 0.005855832212
A47: 12.2 | B47: 00034622 | C47: SINAPI | D47: FORNECIMENTO DE CABO FLEXIVEL PVC 750 V, 3 CONDUTORES DE 6,0 MM2 | E47: M | F47: 105 | G47: 20.11 | H47: =ROUND(G47 * (1 + 15.28 / 100), 2) &CHAR(10)& "(15.28%)" -> 23,18 (15.28%) | I47: =ROUND((F47 * 1 ) * ROUND(G47 * (1 + 15.28 / 100), 2), 2) -> 2433.9 | J47: =I47 / 232426.4 -> 0.01047170201
A48: 12.3 | B48: COMPOSIÇÃO - 047 | C48: Próprio | D48: Fornecimento e instalação de automático de bóia superior e inferior | E48: un | F48: 1 | G48: 68.08 | H48: =ROUND(G48 * (1 + 26.34 / 100), 2) -> 86.01 | I48: =ROUND(F48 * H48, 2) -> 86.01 | J48: =I48 / 232426.4 -> 0.0003700526274
A49: 12.4 | B49: 00039257 | C49: SINAPI | D49: CABO MULTIPOLAR DE COBRE, FLEXIVEL, CLASSE 4 OU 5, ISOLACAO EM HEPR, COBERTURA EM PVC-ST2, ANTICHAMA BWF-B, 0,6/1 KV, 3 CONDUTORES DE 1,5 MM2 | E49: M | F49: 200 | G49: 5.47 | H49: =ROUND(G49 * (1 + 26.34 / 100), 2) -> 6.91 | I49: =ROUND(F49 * H49, 2) -> 1382 | J49: =I49 / 232426.4 -> 0.005945968272
A50: 12.5 | B50: COTAÇÃO-002 | C50: Próprio | D50: Fornecimento de kit de bombeamento fotovoltaico, incluindo uma bomba CC de 2200W com controladora de carga externa, caixa de proteção metálica, módulos fotovoltaicos compatíveis com a geração de 3300Wp além de componentes elétricos necessários para interligação dos painéis, como cabos, conectores MC4 e presilhas de fixação. | E50: un | F50: 1 | G50: 11621.8 | H50: =ROUND(G50 * (1 + 26.34 / 100), 2) -> 14682.98 | I50: =ROUND(F50 * H50, 2) -> 14682.98 | J50: =I50 / 232426.4 -> 0.06317260001
A51: 13 | D51: URBANIZAÇÃO | I51: 4225.36 | J51: =I51 / 232426.4 -> 0.01817934624
A52: 13.1 | B52: COMPOSIÇÃO - 023 | C52: Próprio | D52: Cerca com mourões de concreto de 15x15cm, espaçados de 3m e cravados a 0,5m, escoras de 10x10cm nos cantos, e 9 fios de arame de aço ovalado 15x17. | E52: m | F52: 28 | G52: 83.2 | H52: =ROUND(G52 * (1 + 26.34 / 100), 2) -> 105.11 | I52: =ROUND(F52 * H52, 2) -> 2943.08 | J52: =I52 / 232426.4 -> 0.01266241701
A53: 13.2 | B53: COMPOSIÇÃO - 024 | C53: Próprio | D53: Serviço de instalação de portão de ferro com suporte e batedor conforme projeto, incluso material | E53: m² | F53: 1.5 | G53: 676.63 | H53: =ROUND(G53 * (1 + 26.34 / 100), 2) -> 854.85 | I53: =ROUND(F53 * H53, 2) -> 1282.28 | J53: =I53 / 232426.4 -> 0.00551692923
A54: 14 | D54: OUTROS SERVIÇOS E INSUMOS EXCEPCIONAIS | I54: 14281.89 | J54: =I54 / 232426.4 -> 0.06144693546
A55: 14.2 | B55: COMPOSIÇÃO - 025 | C55: Próprio | D55: Execução de tamponamento conforme especificação | E55: m³ | F55: 0.08 | G55: 664.98 | H55: =ROUND(G55 * (1 + 26.34 / 100), 2) -> 840.14 | I55: =ROUND(F55 * H55, 2) -> 67.21 | J55: =I55 / 232426.4 -> 0.0002891668072
A56: 14.3 | B56: 13747 | C56: ORSE | D56: Revestimento tubo liso aço sch-40 em 12" | E56: m | F56: 6 | G56: 921.04 | H56: =ROUND(G56 * (1 + 26.34 / 100), 2) -> 1163.64 | I56: =ROUND(F56 * H56, 2) -> 6981.84 | J56: =I56 / 232426.4 -> 0.03003892845
A57: 14.5 | B57: M3929 | C57: SICRO3 | D57: Tubo em aço-carbono - E = 3,00 mm e D = 150 mm (6") | E57: m | F57: 6 | G57: 171.2287 | H57: =ROUND(G57 * (1 + 26.34 / 100), 2) -> 216.33 | I57: =ROUND(F57 * H57, 2) -> 1297.98 | J57: =I57 / 232426.4 -> 0.005584477495
A58: 14.6 | B58: M039706073 | C58: EMBASA | D58: FILTRO NOLD EM AÇO GALVANIZADO DN 6" | E58: M | F58: 6 | G58: 763.9 | H58: =ROUND(G58 * (1 + 26.34 / 100), 2) -> 965.11 | I58: =ROUND(F58 * H58, 2) -> 5790.66 | J58: =I58 / 232426.4 -> 0.02491395126
A59: 14.7 | B59: COMPOSIÇÃO - 009 | C59: Próprio | D59: Limpeza manual , remoção de cerca, capina e instalação dos equipamentos (área do poço, painéis solares, bebedouro e reservatório) | E59: m² | F59: 70 | G59: 1.63 | H59: =ROUND(G59 * (1 + 26.34 / 100), 2) -> 2.06 | I59: =ROUND(F59 * H59, 2) -> 144.2 | J59: =I59 / 232426.4 -> 0.0006204114507
F61: Total sem BDI | H61: 185192.5
F62: Total do BDI | H62: 47233.9
F63: Total Geral | H63: 232426.4
A65: _______________________________________________________________ AR/GSA/UEA

Sheet Orçamento Analítico (T)
C1: Obra: | E1: Bancos | G1: B.D.I. | I1: Encargos Sociais
A2: 1ªSR/MG | C2: PERFURAÇÃO E INSTALAÇÃO DE POÇO TUBULAR TOTALMENTE REVESTIDO - 150m | E2: SINAPI - 09/2024 - Minas Gerais SBC - 10/2024 - Minas Gerais SICRO3 - 04/2024 - Minas Gerais ORSE - 06/2024 - Sergipe SEINFRA - 028 - Ceará CPOS/CDHU - 09/2024 - São Paulo FDE - 07/2024 - São Paulo EMBASA - 05/2024 - Bahia | G2: 26,34% | I2: Não Desonerado: Horista: 108,90% Mensalista: 67,79%
A3: Planilha Orçamentária Analítica
A4: 1 | D4: SERVIÇOS PRELIMINARES | J4: 9804.7
A5: 1.1 | B5: Código | C5: Banco | D5: Descrição | E5: Tipo | G5: Und | H5: Quant. | I5: Valor Unit | J5: Total
A6: Composição | B6: COMPOSIÇÃO - 050 | C6: Próprio | D6: Administração Local da Obra - Poço Totalmente Revestido | E6: CANT - CANTEIRO DE OBRAS | G6: un | H6: 1 | I6: 1972.11 | J6: 1972.11
A7: Composição Auxiliar | B7: 012710 | C7: SBC | D7: DESPESAS GERAIS DE MANUTENCAO CANTEIRO DE OBRAS | E7: INSTALACOES PROVISORIAS | G7: MES | H7: 0.23 | I7: 1805.82 | J7: 415.34
A8: Composição Auxiliar | B8: 100321 | C8: SINAPI | D8: TÉCNICO EM SEGURANÇA DO TRABALHO COM ENCARGOS COMPLEMENTARES | E8: SEDI - SERVIÇOS DIVERSOS | G8: MES | H8: 0.23 | I8: 6768.58 | J8: 1556.77
E9: MO sem LS => | F9: 699.17 | G9: LS => | H9: 761.39 | I9: MO com LS => | J9: 1460.56
E10: Valor do BDI => | F10: 519.453774 | H10: Valor com BDI => | J10: 2491.56
G11: Quant. => | H11: 1 | I11: Preço Total => | J11: 2491.56
A13: 1.2 | B13: Código | C13: Banco | D13: Descrição | E13: Tipo | G13: Und | H13: Quant. | I13: Valor Unit | J13: Total
A14: Composição | B14: COMPOSIÇÃO - 003 | C14: Próprio | D14: Serviço de locação Geológica de campo com relatório hidro geológico e perfil construtivo e geológico esperado. Relatório de Viabilidade de implantação das estruturas e vistorias preliminares | E14: SERT - SERVIÇOS TÉCNICOS | G14: un | H14: 1 | I14: 590.3 | J14: 590.3
A15: Composição Auxiliar | B15: 30.01.45 | C15: EMBASA | D15: GEOLOGO SENIOR | E15: 3001 | G15: hora | H15: 5 | I15: 97.41 | J15: 487.05
A16: Insumo | B16: 5896 | C16: ORSE | D16: Veículo tipo sedan ou pick-up capacidade 0,6 ton h | E16: Equipamento | G16: h | H16: 5 | I16: 8.33 | J16: 41.65
A17: Insumo | B17: 00004222 | C17: SINAPI | D17: GASOLINA COMUM | E17: Material | G17: L | H17: 10 | I17: 6.16 | J17: 61.6
E18: MO sem LS => | F18: 233.15 | G18: LS => | H18: 253.9 | I18: MO com LS => | J18: 487.05
E19: Valor do BDI => | F19: 155.48502 | H19: Valor com BDI => | J19: 745.79
G20: Quant. => | H20: 1 | I20: Preço Total => | J20: 745.79
A22: 1.3 | B22: Código | C22: Banco | D22: Descrição | E22: Tipo | G22: Und | H22: Quant. | I22: Valor Unit | J22: Total
A23: Composição | B23: 103689 | C23: SINAPI | D23: FORNECIMENTO E INSTALAÇÃO DE PLACA DE OBRA COM CHAPA GALVANIZADA E ESTRUTURA DE MADEIRA. AF_03/2022_PS | E23: PAVI - PAVIMENTAÇÃO | G23: m² | H23: 1 | I23: 487.37 | J23: 487.37
A24: Composição Auxiliar | B24: 102234 | C24: SINAPI | D24: PINTURA IMUNIZANTE PARA MADEIRA, 2 DEMÃOS. AF_01/2021 | E24: PINT - PINTURAS | G24: m² | H24: 0.5 | I24: 22.24 | J24: 11.12
A25: Composição Auxiliar | B25: 88262 | C25: SINAPI | D25: CARPINTEIRO DE FORMAS COM ENCARGOS COMPLEMENTARES | E25: SEDI - SERVIÇOS DIVERSOS | G25: H | H25: 0.3729 | I25: 27.78 | J25: 10.36
A26: Composição Auxiliar | B26: 88316 | C26: SINAPI | D26: SERVENTE COM ENCARGOS COMPLEMENTARES | E26: SEDI - SERVIÇOS DIVERSOS | G26: H | H26: 1.1186 | I26: 20.42 | J26: 22.84
A27: Insumo | B27: 00004509 | C27: SINAPI | D27: SARRAFO *2,5 X 10* CM EM PINUS, MISTA OU EQUIVALENTE DA REGIAO - BRUTA | E27: Material | G27: M | H27: 3.2083 | I27: 4.02 | J27: 12.9
A28: Insumo | B28: 00004813 | C28: SINAPI | D28: PLACA DE OBRA (PARA CONSTRUCAO CIVIL) EM CHAPA GALVANIZADA *N. 22*, ADESIVADA, DE *2,4 X 1,2* M (SEM POSTES PARA FIXACAO) | E28: Material | G28: m² | H28: 1 | I28: 429.5 | J28: 429.5
A29: Insumo | B29: 00005065 | C29: SINAPI | D29: PREGO DE ACO POLIDO COM CABECA 10 X 10 (7/8 X 17) | E29: Material | G29: KG | H29: 0.0113 | I29: 35.12 | J29: 0.4
A30: Insumo | B30: 00005069 | C30: SINAPI | D30: PREGO DE ACO POLIDO COM CABECA 17 X 27 (2 1/2 X 11) | E30: Material | G30: KG | H30: 0.0132 | I30: 18.82 | J30: 0.25
E31: MO sem LS => | F31: 14.07 | G31: LS => | H31: 15.33 | I31: MO com LS => | J31: 29.4
E32: Valor do BDI => | F32: 128.373258 | H32: Valor com BDI => | J32: 615.74
G33: Quant. => | H33: 0.72 | I33: Preço Total => | J33: 443.33
A35: 1.4 | B35: Código | C35: Banco | D35: Descrição | E35: Tipo | G35: Und | H35: Quant. | I35: Valor Unit | J35: Total
A36: Composição | B36: COMPOSIÇÃO - 052 | C36: Próprio | D36: Taxas e emolumentos fiscais , administrativos para obtenção outorga e outros | E36: ASTU - ASSENTAMENTO DE TUBOS E PECAS | G36: un | H36: 1 | I36: 4847.25 | J36: 4847.25
A37: Insumo | B37: A.09.000.020507 | C37: CPOS/CDHU | D37: Outorga de direito de uso para poço profundo conforme Portaria DAEE nº 1.630 de 30/05/2017 e suas complementares 1.631 a 1.635 e Instrução Técnica DPO nº 10 de 30/05/2017 do DAEE | E37: Material | G37: UN | H37: 1 | I37: 4847.25 | J37: 4847.25
E38: MO sem LS => | F38: 0 | G38: LS => | H38: 0 | I38: MO com LS => | J38: 0
E39: Valor do BDI => | F39: 1276.76565 | H39: Valor com BDI => | J39: 6124.02
G40: Quant. => | H40: 1 | I40: Preço Total => | J40: 6124.02
A42: 2 | D42: MOBILIZAÇÂO E DESMOBILIZAÇÂO EQUIPE CAMPO | J42: 4884
A43: 2.1 | B43: Código | C43: Banco | D43: Descrição | E43: Tipo | G43: Und | H43: Quant. | I43: Valor Unit | J43: Total
A44: Composição | B44: COMPOSIÇÃO - 006 | C44: Próprio | D44: Transporte de Comboio Perfuração | E44: TRAN - TRANSPORTES, CARGAS E DESCARGAS | G44: km | H44: 1 | I44: 4.59 | J44: 4.59
A45: Composição Auxiliar | B45: 5824 | C45: SINAPI | D45: CAMINHÃO TOCO, PBT 16.000 KG, CARGA ÚTIL MÁX. 10.685 KG, DIST. ENTRE EIXOS 4,8 M, POTÊNCIA 189 CV, INCLUSIVE CARROCERIA FIXA ABERTA DE MADEIRA P/ TRANSPORTE GERAL DE CARGA SECA, DIMEN. APROX. 2,5 X 7,00 X 0,50 M - CHP DIURNO. AF_06/2014 | E45: CHOR - CUSTOS HORÁRIOS DE MÁQUINAS E EQUIPAMENTOS | G45: CHP | H45: 0.01666 | I45: 213.13 | J45: 3.55
A46: Composição Auxiliar | B46: 5826 | C46: SINAPI | D46: CAMINHÃO TOCO, PBT 16.000 KG, CARGA ÚTIL MÁX. 10.685 KG, DIST. ENTRE EIXOS 4,8 M, POTÊNCIA 189 CV, INCLUSIVE CARROCERIA FIXA ABERTA DE MADEIRA P/ TRANSPORTE GERAL DE CARGA SECA, DIMEN. APROX. 2,5 X 7,00 X 0,50 M - CHI DIURNO. AF_06/2014 | E46: CHOR - CUSTOS HORÁRIOS DE MÁQUINAS E EQUIPAMENTOS | G46: CHI | H46: 0.01666 | I46: 62.19 | J46: 1.04
E47: MO sem LS => | F47: 0.4 | G47: LS => | H47: 0.44 | I47: MO com LS => | J47: 0.84
E48: Valor do BDI => | F48: 1.209006 | H48: Valor com BDI => | J48: 5.8
G49: Quant. => | H49: 300 | I49: Preço Total => | J49: 1740
A51: 2.2 | B51: Código | C51: Banco | D51: Descrição | E51: Tipo | G51: Und | H51: Quant. | I51: Valor Unit | J51: Total
A52: Composição | B52: COMPOSIÇÃO - 007 | C52: Próprio | D52: Transporte de Comboio Instalação | E52: TRAN - TRANSPORTES, CARGAS E DESCARGAS | G52: km | H52: 1 | I52: 5.78 | J52: 5.78
A53: Composição Auxiliar | B53: 5928 | C53: SINAPI | D53: GUINDAUTO HIDRÁULICO, CAPACIDADE MÁXIMA DE CARGA 6200 KG, MOMENTO MÁXIMO DE CARGA 11,7 TM, ALCANCE MÁXIMO HORIZONTAL 9,70 M, INCLUSIVE CAMINHÃO TOCO PBT 16.000 KG, POTÊNCIA DE 189 CV - CHP DIURNO. AF_06/2014 | E53: CHOR - CUSTOS HORÁRIOS DE MÁQUINAS E EQUIPAMENTOS | G53: CHP | H53: 0.01666 | I53: 272.82 | J53: 4.55
A54: Composição Auxiliar | B54: 5930 | C54: SINAPI | D54: GUINDAUTO HIDRÁULICO, CAPACIDADE MÁXIMA DE CARGA 6200 KG, MOMENTO MÁXIMO DE CARGA 11,7 TM, ALCANCE MÁXIMO HORIZONTAL 9,70 M, INCLUSIVE CAMINHÃO TOCO PBT 16.000 KG, POTÊNCIA DE 189 CV - CHI DIURNO. AF_06/2014 | E54: CHOR - CUSTOS HORÁRIOS DE MÁQUINAS E EQUIPAMENTOS | G54: CHI | H54: 0.01666 | I54: 73.84 | J54: 1.23
E55: MO sem LS => | F55: 0.45 | G55: LS => | H55: 0.51 | I55: MO com LS => | J55: 0.96
E56: Valor do BDI => | F56: 1.522452 | H56: Valor com BDI => | J56: 7.3
G57: Quant. => | H57: 300 | I57: Preço Total => | J57: 2190
A59: 2.3 | B59: Código | C59: Banco | D59: Descrição | E59: Tipo | G59: Und | H59: Quant. | I59: Valor Unit | J59: Total
A60: Composição | B60: COMPOSIÇÃO - 067 | C60: Próprio | D60: Transporte de Equipe Teste de Vazão | E60: TRAN - TRANSPORTES, CARGAS E DESCARGAS | G60: km | H60: 1 | I60: 2.52 | J60: 2.52
A61: Composição Auxiliar | B61: 73467 | C61: SINAPI | D61: CAMINHÃO TOCO, PBT 14.300 KG, CARGA ÚTIL MÁX. 9.710 KG, DIST. ENTRE EIXOS 3,56 M, POTÊNCIA 185 CV, INCLUSIVE CARROCERIA FIXA ABERTA DE MADEIRA P/ TRANSPORTE GERAL DE CARGA SECA, DIMEN. APROX. 2,50 X 6,50 X 0,50 M - CHP DIURNO. AF_06/2014 | E61: CHOR - CUSTOS HORÁRIOS DE MÁQUINAS E EQUIPAMENTOS | G61: CHP | H61: 0.0083 | I61: 244.26 | J61: 2.03
A62: Composição Auxiliar | B62: 91395 | C62: SINAPI | D62: CAMINHÃO TOCO, PBT 14.300 KG, CARGA ÚTIL MÁX. 9.710 KG, DIST. ENTRE EIXOS 3,56 M, POTÊNCIA 185 CV, INCLUSIVE CARROCERIA FIXA ABERTA DE MADEIRA P/ TRANSPORTE GERAL DE CARGA SECA, DIMEN. APROX. 2,50 X 6,50 X 0,50 M - CHI DIURNO. AF_06/2014 | E62: CHOR - CUSTOS HORÁRIOS DE MÁQUINAS E EQUIPAMENTOS | G62: CHI | H62: 0.0083 | I62: 59.38 | J62: 0.49
E63: MO sem LS => | F63: 0.2 | G63: LS => | H63: 0.22 | I63: MO com LS => | J63: 0.42
E64: Valor do BDI => | F64: 0.663768 | H64: Valor com BDI => | J64: 3.18
G65: Quant. => | H65: 300 | I65: Preço Total => | J65: 954
A67: 3 | D67: PERFURAÇÃO E COMPLETAÇÃO DE POÇO TUBULAR | J67: 108450.81
A68: 3.2 | B68: Código | C68: Banco | D68: Descrição | E68: Tipo | G68: Und | H68: Quant. | I68: Valor Unit | J68: Total
A69: Composição | B69: COMPOSIÇÃO - 038 | C69: Próprio | D69: Perfuração diâmetro de Ø 12 1/4" em rocha - incluso mão de obra para instalação do revestimento e completação anelar | E69: SERT - SERVIÇOS TÉCNICOS | G69: m | H69: 1 | I69: 326.11 | J69: 326.11
A70: Composição Auxiliar | B70: 6224 | C70: ORSE | D70: Perfuração em Sedimento / Camadas inconsolidadas DN 12.1/2" - Poço de 150 a 250m | E70: Conversão InfoWOrca | G70: m | H70: 1 | I70: 318.61 | J70: 318.61
A71: Insumo | B71: 00043366 | C71: SINAPI | D71: BENTONITA, ARGILA CONSTITUIDA POR MONTMORILONITA | E71: Material | G71: KG | H71: 5 | I71: 1.5 | J71: 7.5
E72: MO sem LS => | F72: 0 | G72: LS => | H72: 0 | I72: MO com LS => | J72: 0
E73: Valor do BDI => | F73: 85.897374 | H73: Valor com BDI => | J73: 412.01
G74: Quant. => | H74: 150 | I74: Preço Total => | J74: 61801.5
A76: 3.3 | B76: Código | C76: Banco | D76: Descrição | E76: Tipo | G76: Und | H76: Quant. | I76: Valor Unit | J76: Total
A77: Insumo | B77: 5073 | C77: ORSE | D77: Fornecimento de pré-filtro comum m3 | E77: Serviços | G77: m³ | H77: 1 | I77: 1619.38 | J77: 1619.38
E78: MO sem LS => | F78: 0 | G78: LS => | H78: 0 | I78: MO com LS => | J78: 0
E79: Valor do BDI => | F79: 247.44 | H79: Valor com BDI => | J79: 1866.82
G80: Quant. => | H80: 6.96 | I80: Preço Total => | J80: 12993.07
A82: 3.4 | B82: Código | C82: Banco | D82: Descrição | E82: Tipo | G82: Und | H82: Quant. | I82: Valor Unit | J82: Total
A83: Insumo | B83: 5091 | C83: ORSE | D83: Revestimento filtro pvc geomecânico reforçado dn 150mm | E83: Serviços | G83: m | H83: 1 | I83: 221.38 | J83: 221.38
E84: MO sem LS => | F84: 0 | G84: LS => | H84: 0 | I84: MO com LS => | J84: 0
E85: Valor do BDI => | F85: 58.31 | H85: Valor com BDI => | J85: 279.69
G86: Quant. => | H86: 16 | I86: Preço Total => | J86: 4475.04
A88: 3.5 | B88: Código | C88: Banco | D88: Descrição | E88: Tipo | G88: Und | H88: Quant. | I88: Valor Unit | J88: Total
A89: Insumo | B89: 5024 | C89: ORSE | D89: Centralizador em 6" | E89: Serviços | G89: un | H89: 1 | I89: 267.02 | J89: 267.02
E90: MO sem LS => | F90: 0 | G90: LS => | H90: 0 | I90: MO com LS => | J90: 0
E91: Valor do BDI => | F91: 70.33 | H91: Valor com BDI => | J91: 337.35
G92: Quant. => | H92: 10 | I92: Preço Total => | J92: 3373.5
A94: 3.6 | B94: Código | C94: Banco | D94: Descrição | E94: Tipo | G94: Und | H94: Quant. | I94: Valor Unit | J94: Total
A95: Insumo | B95: 00009850 | C95: SINAPI | D95: TUBO PVC DE REVESTIMENTO GEOMECANICO NERVURADO REFORCADO, DN = 150 MM, COMPRIMENTO = 2 M | E95: Material | G95: M | H95: 1 | I95: 147.75 | J95: 147.75
E96: MO sem LS => | F96: 0 | G96: LS => | H96: 0 | I96: MO com LS => | J96: 0
E97: Valor do BDI => | F97: 38.92 | H97: Valor com BDI => | J97: 186.67
G98: Quant. => | H98: 134 | I98: Preço Total => | J98: 25013.78
A100: 3.7 | B100: Código | C100: Banco | D100: Descrição | E100: Tipo | G100: Und | H100: Quant. | I100: Valor Unit | J100: Total
A101: Composição | B101: COMPOSIÇÃO - 011 | C101: Próprio | D101: Serviço de lançamento cimentação anelar, incluso materiais. | E101: SEDI - SERVIÇOS DIVERSOS | G101: m³ | H101: 1 | I101: 541.72 | J101: 541.72
A102: Composição Auxiliar | B102: 1903 | C102: ORSE | D102: Argamassa cimento e areia traço t-1 (1:3) - 1 saco cimento 50kg / 3 padiolas areia dim. 0.35 x 0.45 x 0.23 m - Confecção mecânica e transporte | E102: Argamassas | G102: m³ | H102: 1 | I102: 541.72 | J102: 541.72
E103: MO sem LS => | F103: 26.14 | G103: LS => | H103: 28.46 | I103: MO com LS => | J103: 54.6
E104: Valor do BDI => | F104: 142.689048 | H104: Valor com BDI => | J104: 684.41
G105: Quant. => | H105: 1.16 | I105: Preço Total => | J105: 793.92
A107: 4 | D107: PÓS PERFURAÇÃO | J107: 12156.03
A108: 4.1 | B108: Código | C108: Banco | D108: Descrição | E108: Tipo | G108: Und | H108: Quant. | I108: Valor Unit | J108: Total
A109: Composição | B109: 6305 | C109: ORSE | D109: Desenvolvimento com Compressor 250psi / 750cfm | E109: Conversão InfoWOrca | G109: h | H109: 1 | I109: 411.16 | J109: 411.16
A110: Insumo | B110: 5030 | C110: ORSE | D110: Desenvolvimento com compressor 250psi - 750cfm h | E110: Serviços | G110: h | H110: 1 | I110: 411.16 | J110: 411.16
E111: MO sem LS => | F111: 0 | G111: LS => | H111: 0 | I111: MO com LS => | J111: 0
E112: Valor do BDI => | F112: 108.299544 | H112: Valor com BDI => | J112: 519.46
G113: Quant. => | H113: 2 | I113: Preço Total => | J113: 1038.92
A115: 4.3 | B115: Código | C115: Banco | D115: Descrição | E115: Tipo | G115: Und | H115: Quant. | I115: Valor Unit | J115: Total
A116: Composição | B116: COMPOSIÇÃO - 015 | C116: Próprio | D116: Inspeção ótica em poço tubular câmera com rotação de 360º, visada lateral, com fonte própria de luz, entregue vídeo em cores e marcação de profundidades. | E116: SEES - SERVIÇOS ESPECIAIS | G116: m | H116: 1 | I116: 9.42 | J116: 9.42
A117: Insumo | B117: H020050004 | C117: EMBASA | D117: APARELHO DE PERFILAGEM OPTICA | E117: Material | G117: M | H117: 1 | I117: 4.4 | J117: 4.4
A118: Insumo | B118: B590000022 | C118: EMBASA | D118: TECNICO MEDIO | E118: Mão de Obra | G118: H | H118: 0.0835 | I118: 60.1472 | J118: 5.02
E119: MO sem LS => | F119: 2.4 | G119: LS => | H119: 2.62 | I119: MO com LS => | J119: 5.02
E120: Valor do BDI => | F120: 2.481228 | H120: Valor com BDI => | J120: 11.9
G121: Quant. => | H121: 150 | I121: Preço Total => | J121: 1785
A123: 4.5 | B123: Código | C123: Banco | D123: Descrição | E123: Tipo | G123: Und | H123: Quant. | I123: Valor Unit | J123: Total
A124: Composição | B124: COMPOSIÇÃO - 053 | C124: Próprio | D124: Serviço de coleta e Análise Físico-Química e Bacteriológica | E124: SEDI - SERVIÇOS DIVERSOS | G124: un | H124: 1 | I124: 621.19 | J124: 621.19
A125: Composição Auxiliar | B125: 6312 | C125: ORSE | D125: Análise Físico-química da Água | E125: Conversão InfoWOrca | G125: un | H125: 1 | I125: 565.21 | J125: 565.21
A126: Composição Auxiliar | B126: 6313 | C126: ORSE | D126: Análise Bacteriológica da Água | E126: Conversão InfoWOrca | G126: un | H126: 1 | I126: 55.98 | J126: 55.98
E127: MO sem LS => | F127: 0 | G127: LS => | H127: 0 | I127: MO com LS => | J127: 0
E128: Valor do BDI => | F128: 163.621446 | H128: Valor com BDI => | J128: 784.81
G129: Quant. => | H129: 1 | I129: Preço Total => | J129: 784.81
A131: 4.6 | B131: Código | C131: Banco | D131: Descrição | E131: Tipo | G131: Und | H131: Quant. | I131: Valor Unit | J131: Total
A132: Composição | B132: COMPOSIÇÃO - 014 | C132: Próprio | D132: Serviço de instalação de laje sanitária com dimensões (1,5x1,5x0,3) , incluso material. | E132: SEDI - SERVIÇOS DIVERSOS | G132: un | H132: 1 | I132: 634.05 | J132: 634.05
A133: Composição Auxiliar | B133: 92522 | C133: SINAPI | D133: MONTAGEM E DESMONTAGEM DE FÔRMA DE LAJE MACIÇA, PÉ-DIREITO SIMPLES, EM CHAPA DE MADEIRA COMPENSADA RESINADA, 8 UTILIZAÇÕES. AF_09/2020 | E133: FUES - FUNDAÇÕES E ESTRUTURAS | G133: m² | H133: 1.8 | I133: 38.4 | J133: 69.12
A134: Composição Auxiliar | B134: 93358 | C134: SINAPI | D134: ESCAVAÇÃO MANUAL DE VALA COM PROFUNDIDADE MENOR OU IGUAL A 1,30 M. AF_02/2021 | E134: MOVT - MOVIMENTO DE TERRA | G134: m³ | H134: 0.225 | I134: 80.78 | J134: 18.18
A135: Composição Auxiliar | B135: 94975 | C135: SINAPI | D135: CONCRETO FCK = 15MPA, TRAÇO 1:3,4:3,5 (EM MASSA SECA DE CIMENTO/ AREIA MÉDIA/ BRITA 1) - PREPARO MANUAL. AF_05/2021 | E135: FUES - FUNDAÇÕES E ESTRUTURAS | G135: m³ | H135: 0.675 | I135: 519.59 | J135: 350.72
A136: Composição Auxiliar | B136: 103670 | C136: SINAPI | D136: LANÇAMENTO COM USO DE BALDES, ADENSAMENTO E ACABAMENTO DE CONCRETO EM ESTRUTURAS. AF_02/2022 | E136: FUES - FUNDAÇÕES E ESTRUTURAS | G136: m³ | H136: 0.675 | I136: 290.42 | J136: 196.03
E137: MO sem LS => | F137: 116.8 | G137: LS => | H137: 127.2 | I137: MO com LS => | J137: 244
E138: Valor do BDI => | F138: 167.00877 | H138: Valor com BDI => | J138: 801.06
G139: Quant. => | H139: 1 | I139: Preço Total => | J139: 801.06
A141: 4.7 | B141: Código | C141: Banco | D141: Descrição | E141: Tipo | G141: Und | H141: Quant. | I141: Valor Unit | J141: Total
A142: Composição | B142: 24.80.22 | C142: EMBASA | D142: Ensaio de bombeamento poço tubular incluso materiais e grupo gerador | E142: 2480 | G142: H | H142: 1 | I142: 255.47 | J142: 255.47
A143: Composição Auxiliar | B143: 24.00.15 | C143: EMBASA | D143: EQUIPE (3 PROFISSIONAIS CAMPO) - BOMBEIO | E143: 2400 | G143: H | H143: 1 | I143: 190.55 | J143: 190.55
A144: Insumo | B144: H020050001 | C144: EMBASA | D144: UNIDADE DE ENSAIO E BOMBEAMENTO - UEB1 ATE 150M3 NO SEDIMENTO | E144: Material | G144: H | H144: 1 | I144: 64.92 | J144: 64.92
E145: MO sem LS => | F145: 91.22 | G145: LS => | H145: 99.33 | I145: MO com LS => | J145: 190.55
E146: Valor do BDI => | F146: 67.290798 | H146: Valor com BDI => | J146: 322.76
G147: Quant. => | H147: 24 | I147: Preço Total => | J147: 7746.24
A149: 5 | D149: RESERVAÇÃO | J149: 27094.09
A150: 5.1 | B150: Código | C150: Banco | D150: Descrição | E150: Tipo | G150: Und | H150: Quant. | I150: Valor Unit | J150: Total
A151: Composição | B151: COMPOSIÇÃO - 059 | C151: Próprio | D151: Fornecimento e instalação de reservatório e base elevada 10 m³ | E151: ASTU - ASSENTAMENTO DE TUBOS E PECAS | G151: un | H151: 1 | I151: 25308.6 | J151: 25308.6
A152: Composição Auxiliar | B152: 92759 | C152: SINAPI | D152: ARMAÇÃO DE PILAR OU VIGA DE ESTRUTURA CONVENCIONAL DE CONCRETO ARMADO UTILIZANDO AÇO CA-60 DE 5,0 MM - MONTAGEM. AF_06/2022 | E152: FUES - FUNDAÇÕES E ESTRUTURAS | G152: KG | H152: 29.1 | I152: 14 | J152: 407.4
A153: Composição Auxiliar | B153: 92761 | C153: SINAPI | D153: ARMAÇÃO DE PILAR OU VIGA DE ESTRUTURA CONVENCIONAL DE CONCRETO ARMADO UTILIZANDO AÇO CA-50 DE 8,0 MM - MONTAGEM. AF_06/2022 | E153: FUES - FUNDAÇÕES E ESTRUTURAS | G153: KG | H153: 48 | I153: 12.31 | J153: 590.88
A154: Composição Auxiliar | B154: 93358 | C154: SINAPI | D154: ESCAVAÇÃO MANUAL DE VALA COM PROFUNDIDADE MENOR OU IGUAL A 1,30 M. AF_02/2021 | E154: MOVT - MOVIMENTO DE TERRA | G154: m³ | H154: 5.2 | I154: 80.78 | J154: 420.06
A155: Composição Auxiliar | B155: 92763 | C155: SINAPI | D155: ARMAÇÃO DE PILAR OU VIGA DE ESTRUTURA CONVENCIONAL DE CONCRETO ARMADO UTILIZANDO AÇO CA-50 DE 12,5 MM - MONTAGEM. AF_06/2022 | E155: FUES - FUNDAÇÕES E ESTRUTURAS | G155: KG | H155: 118.4 | I155: 9.19 | J155: 1088.1
A156: Composição Auxiliar | B156: 94970 | C156: SINAPI | D156: CONCRETO FCK = 20MPA, TRAÇO 1:2,7:3 (EM MASSA SECA DE CIMENTO/ AREIA MÉDIA/ BRITA 1) - PREPARO MECÂNICO COM BETONEIRA 600 L. AF_05/2021 | E156: FUES - FUNDAÇÕES E ESTRUTURAS | G156: m³ | H156: 4.89 | I156: 500.39 | J156: 2446.91
A157: Composição Auxiliar | B157: 103670 | C157: SINAPI | D157: LANÇAMENTO COM USO DE BALDES, ADENSAMENTO E ACABAMENTO DE CONCRETO EM ESTRUTURAS. AF_02/2022 | E157: FUES - FUNDAÇÕES E ESTRUTURAS | G157: m³ | H157: 6.85 | I157: 290.42 | J157: 1989.38
A158: Composição Auxiliar | B158: 84651 | C158: SINAPI | D158: PINTURA COM TINTA IMPERMEAVEL MINERAL EM PO, DUAS DEMAOS | E158: PINT - PINTURAS | G158: m² | H158: 28.66 | I158: 13.29 | J158: 380.89
A159: Composição Auxiliar | B159: 90776 | C159: SINAPI | D159: ENCARREGADO GERAL COM ENCARGOS COMPLEMENTARES | E159: SEDI - SERVIÇOS DIVERSOS | G159: H | H159: 1 | I159: 55.16 | J159: 55.16
A160: Composição Auxiliar | B160: 102482 | C160: SINAPI | D160: CONCRETO FCK = 25MPA, TRAÇO 1:2,2:2,5 (EM MASSA SECA DE CIMENTO/ AREIA MÉDIA/ SEIXO ROLADO) - PREPARO MECÂNICO COM BETONEIRA 600 L. AF_05/2021 | E160: FUES - FUNDAÇÕES E ESTRUTURAS | G160: m³ | H160: 1.96 | I160: 713.85 | J160: 1399.15
A161: Composição Auxiliar | B161: 92263 | C161: SINAPI | D161: FABRICAÇÃO DE FÔRMA PARA PILARES E ESTRUTURAS SIMILARES, EM CHAPA DE MADEIRA COMPENSADA RESINADA, E = 17 MM. AF_09/2020 | E161: FUES - FUNDAÇÕES E ESTRUTURAS | G161: m² | H161: 18.1 | I161: 156.69 | J161: 2836.09
A162: Composição Auxiliar | B162: 89272 | C162: SINAPI | D162: GUINDASTE HIDRÁULICO AUTOPROPELIDO, COM LANÇA TELESCÓPICA 28,80 M, CAPACIDADE MÁXIMA 30 T, POTÊNCIA 97 KW, TRAÇÃO 4 X 4 - CHP DIURNO. AF_11/2014 | E162: CHOR - CUSTOS HORÁRIOS DE MÁQUINAS E EQUIPAMENTOS | G162: CHP | H162: 13 | I162: 225.81 | J162: 2935.53
A163: Composição Auxiliar | B163: 5824 | C163: SINAPI | D163: CAMINHÃO TOCO, PBT 16.000 KG, CARGA ÚTIL MÁX. 10.685 KG, DIST. ENTRE EIXOS 4,8 M, POTÊNCIA 189 CV, INCLUSIVE CARROCERIA FIXA ABERTA DE MADEIRA P/ TRANSPORTE GERAL DE CARGA SECA, DIMEN. APROX. 2,5 X 7,00 X 0,50 M - CHP DIURNO. AF_06/2014 | E163: CHOR - CUSTOS HORÁRIOS DE MÁQUINAS E EQUIPAMENTOS | G163: CHP | H163: 24 | I163: 213.13 | J163: 5115.12
A164: Composição Auxiliar | B164: 88267 | C164: SINAPI | D164: ENCANADOR OU BOMBEIRO HIDRÁULICO COM ENCARGOS COMPLEMENTARES | E164: SEDI - SERVIÇOS DIVERSOS | G164: H | H164: 4 | I164: 27.39 | J164: 109.56
A165: Composição Auxiliar | B165: 88248 | C165: SINAPI | D165: AUXILIAR DE ENCANADOR OU BOMBEIRO HIDRÁULICO COM ENCARGOS COMPLEMENTARES | E165: SEDI - SERVIÇOS DIVERSOS | G165: H | H165: 4 | I165: 21.99 | J165: 87.96
A166: Insumo | B166: 00011677 | C166: SINAPI | D166: REGISTRO DE ESFERA, PVC, COM VOLANTE, VS, SOLDAVEL, DN 50 MM, COM CORPO DIVIDIDO | E166: Material | G166: UN | H166: 1 | I166: 32.78 | J166: 32.78
A167: Insumo | B167: 00003146 | C167: SINAPI | D167: FITA VEDA ROSCA EM ROLOS DE 18 MM X 10 M (L X C) | E167: Material | G167: UN | H167: 0.18 | I167: 3.93 | J167: 0.71
A168: Insumo | B168: 00037106 | C168: SINAPI | D168: CAIXA D'AGUA / RESERVATORIO EM POLIESTER REFORCADO COM FIBRA DE VIDRO, 10000 LITROS, COM TAMPA | E168: Material | G168: UN | H168: 1 | I168: 5073.93 | J168: 5073.93
A169: Insumo | B169: 00009875 | C169: SINAPI | D169: TUBO PVC, SOLDAVEL, DE 50 MM, AGUA FRIA (NBR-5648) | E169: Material | G169: M | H169: 15.2 | I169: 15.16 | J169: 230.43
A170: Insumo | B170: 00000113 | C170: SINAPI | D170: ADAPTADOR PVC SOLDAVEL CURTO COM BOLSA E ROSCA, 60 MM X 2", PARA AGUA FRIA | E170: Material | G170: UN | H170: 1 | I170: 10.97 | J170: 10.97
A171: Insumo | B171: 00003871 | C171: SINAPI | D171: LUVA SOLDAVEL COM ROSCA, PVC, 50 MM X 1 1/2", PARA AGUA FRIA PREDIAL | E171: Material | G171: UN | H171: 1 | I171: 17.95 | J171: 17.95
A172: Insumo | B172: 00003540 | C172: SINAPI | D172: JOELHO PVC, SOLDAVEL, 90 GRAUS, 50 MM, COR MARROM, PARA AGUA FRIA PREDIAL | E172: Material | G172: UN | H172: 5 | I172: 4.9 | J172: 24.5
A173: Insumo | B173: 00000099 | C173: SINAPI | D173: ADAPTADOR PVC SOLDAVEL, COM FLANGE E ANEL DE VEDACAO, 50 MM X 1 1/2", PARA CAIXA D'AGUA | E173: Material | G173: UN | H173: 2 | I173: 25.76 | J173: 51.52
A174: Insumo | B174: 00000119 | C174: SINAPI | D174: ADESIVO PLASTICO PARA PVC, BISNAGA COM 75 GR | E174: Material | G174: UN | H174: 0.45 | I174: 8.05 | J174: 3.62
E175: MO sem LS => | F175: 2216.34 | G175: LS => | H175: 2413.72 | I175: MO com LS => | J175: 4630.06
E176: Valor do BDI => | F176: 6666.28524 | H176: Valor com BDI => | J176: 31974.89
G177: Quant. => | H177: 0.8 | I177: Preço Total => | J177: 25579.91
A179: 5.2 | B179: Código | C179: Banco | D179: Descrição | E179: Tipo | G179: Und | H179: Quant. | I179: Valor Unit | J179: Total
A180: Composição | B180: COMPOSIÇÃO - 039 | C180: Próprio | D180: Fornecimento e execução de reservatório apoiado de 5 m³ | E180: SEDI - SERVIÇOS DIVERSOS | G180: un | H180: 1 | I180: 5992.49 | J180: 5992.49
A181: Composição Auxiliar | B181: 5928 | C181: SINAPI | D181: GUINDAUTO HIDRÁULICO, CAPACIDADE MÁXIMA DE CARGA 6200 KG, MOMENTO MÁXIMO DE CARGA 11,7 TM, ALCANCE MÁXIMO HORIZONTAL 9,70 M, INCLUSIVE CAMINHÃO TOCO PBT 16.000 KG, POTÊNCIA DE 189 CV - CHP DIURNO. AF_06/2014 | E181: CHOR - CUSTOS HORÁRIOS DE MÁQUINAS E EQUIPAMENTOS | G181: CHP | H181: 4 | I181: 272.82 | J181: 1091.28
A182: Composição Auxiliar | B182: 88309 | C182: SINAPI | D182: PEDREIRO COM ENCARGOS COMPLEMENTARES | E182: SEDI - SERVIÇOS DIVERSOS | G182: H | H182: 3 | I182: 28.16 | J182: 84.48
A183: Composição Auxiliar | B183: 88316 | C183: SINAPI | D183: SERVENTE COM ENCARGOS COMPLEMENTARES | E183: SEDI - SERVIÇOS DIVERSOS | G183: H | H183: 3 | I183: 20.42 | J183: 61.26
A184: Composição Auxiliar | B184: 88262 | C184: SINAPI | D184: CARPINTEIRO DE FORMAS COM ENCARGOS COMPLEMENTARES | E184: SEDI - SERVIÇOS DIVERSOS | G184: H | H184: 3 | I184: 27.78 | J184: 83.34
A185: Composição Auxiliar | B185: 102617 | C185: SINAPI | D185: CAIXA D´ÁGUA EM POLIÉSTER REFORÇADO COM FIBRA DE VIDRO, 5000 LITROS - FORNECIMENTO E INSTALAÇÃO. AF_06/2021 | E185: INHI - INSTALAÇÕES HIDROS SANITÁRIAS | G185: UN | H185: 1 | I185: 3517.25 | J185: 3517.25
A186: Composição Auxiliar | B186: 92783 | C186: SINAPI | D186: ARMAÇÃO DE LAJE DE UMA ESTRUTURA CONVENCIONAL DE CONCRETO ARMADO EM UMA EDIFICAÇÃO TÉRREA OU SOBRADO UTILIZANDO AÇO CA-60 DE 4,2 MM - MONTAGEM. AF_12/2015 | E186: FUES - FUNDAÇÕES E ESTRUTURAS | G186: KG | H186: 3.2 | I186: 18.07 | J186: 57.82
A187: Composição Auxiliar | B187: 92759 | C187: SINAPI | D187: ARMAÇÃO DE PILAR OU VIGA DE ESTRUTURA CONVENCIONAL DE CONCRETO ARMADO UTILIZANDO AÇO CA-60 DE 5,0 MM - MONTAGEM. AF_06/2022 | E187: FUES - FUNDAÇÕES E ESTRUTURAS | G187: KG | H187: 5.6 | I187: 14 | J187: 78.4
A188: Composição Auxiliar | B188: 94964 | C188: SINAPI | D188: CONCRETO FCK = 20MPA, TRAÇO 1:2,7:3 (EM MASSA SECA DE CIMENTO/ AREIA MÉDIA/ BRITA 1) - PREPARO MECÂNICO COM BETONEIRA 400 L. AF_05/2021 | E188: FUES - FUNDAÇÕES E ESTRUTURAS | G188: m³ | H188: 1.56 | I188: 513.2 | J188: 800.59
A189: Composição Auxiliar | B189: 84651 | C189: SINAPI | D189: PINTURA COM TINTA IMPERMEAVEL MINERAL EM PO, DUAS DEMAOS | E189: PINT - PINTURAS | G189: m² | H189: 2.7 | I189: 13.29 | J189: 35.88
A190: Composição Auxiliar | B190: 92783 | C190: SINAPI | D190: ARMAÇÃO DE LAJE DE UMA ESTRUTURA CONVENCIONAL DE CONCRETO ARMADO EM UMA EDIFICAÇÃO TÉRREA OU SOBRADO UTILIZANDO AÇO CA-60 DE 4,2 MM - MONTAGEM. AF_12/2015 | E190: FUES - FUNDAÇÕES E ESTRUTURAS | G190: KG | H190: 3.2 | I190: 18.07 | J190: 57.82
A191: Insumo | B191: 00007155 | C191: SINAPI | D191: TELA DE ACO SOLDADA NERVURADA, CA-60, Q-138, (2,20 KG/M2), DIAMETRO DO FIO = 4,2 MM, LARGURA = 2,45 M, ESPACAMENTO DA MALHA = 10 X 10 CM | E191: Material | G191: m² | H191: 6.16 | I191: 20.19 | J191: 124.37
E192: MO sem LS => | F192: 300.93 | G192: LS => | H192: 327.73 | I192: MO com LS => | J192: 628.66
E193: Valor do BDI => | F193: 1578.421866 | H193: Valor com BDI => | J193: 7570.91
G194: Quant. => | H194: 0.2 | I194: Preço Total => | J194: 1514.18
A196: 6 | D196: BEBEDOURO | J196: 1951.4
A197: 6.1 | B197: Código | C197: Banco | D197: Descrição | E197: Tipo | G197: Und | H197: Quant. | I197: Valor Unit | J197: Total
A198: Composição | B198: COMPOSIÇÃO - 017 | C198: Próprio | D198: Serviço de execução do bebedouro em concreto armado, incluso materiais. | E198: SEDI - SERVIÇOS DIVERSOS | G198: un | H198: 1 | I198: 1544.56 | J198: 1544.56
A199: Composição Auxiliar | B199: 5928 | C199: SINAPI | D199: GUINDAUTO HIDRÁULICO, CAPACIDADE MÁXIMA DE CARGA 6200 KG, MOMENTO MÁXIMO DE CARGA 11,7 TM, ALCANCE MÁXIMO HORIZONTAL 9,70 M, INCLUSIVE CAMINHÃO TOCO PBT 16.000 KG, POTÊNCIA DE 189 CV - CHP DIURNO. AF_06/2014 | E199: CHOR - CUSTOS HORÁRIOS DE MÁQUINAS E EQUIPAMENTOS | G199: CHP | H199: 2 | I199: 272.82 | J199: 545.64
A200: Composição Auxiliar | B200: 87445 | C200: SINAPI | D200: BETONEIRA CAPACIDADE NOMINAL 400 L, CAPACIDADE DE MISTURA 310 L, MOTOR A DIESEL POTÊNCIA 5,0 HP, SEM CARREGADOR - CHP DIURNO. AF_05/2023 | E200: CHOR - CUSTOS HORÁRIOS DE MÁQUINAS E EQUIPAMENTOS | G200: CHP | H200: 0.5 | I200: 5.38 | J200: 2.69
A201: Composição Auxiliar | B201: 88377 | C201: SINAPI | D201: OPERADOR DE BETONEIRA ESTACIONÁRIA/MISTURADOR COM ENCARGOS COMPLEMENTARES | E201: SEDI - SERVIÇOS DIVERSOS | G201: H | H201: 0.5 | I201: 25.33 | J201: 12.67
A202: Composição Auxiliar | B202: 88310 | C202: SINAPI | D202: PINTOR COM ENCARGOS COMPLEMENTARES | E202: SEDI - SERVIÇOS DIVERSOS | G202: H | H202: 0.3 | I202: 29.64 | J202: 8.89
A203: Composição Auxiliar | B203: 100301 | C203: SINAPI | D203: AJUDANTE DE PINTOR COM ENCARGOS COMPLEMENTARES | E203: SEDI - SERVIÇOS DIVERSOS | G203: H | H203: 0.1 | I203: 24.26 | J203: 2.43
A204: Composição Auxiliar | B204: 88245 | C204: SINAPI | D204: ARMADOR COM ENCARGOS COMPLEMENTARES | E204: SEDI - SERVIÇOS DIVERSOS | G204: H | H204: 3 | I204: 27.92 | J204: 83.76
A205: Composição Auxiliar | B205: 88262 | C205: SINAPI | D205: CARPINTEIRO DE FORMAS COM ENCARGOS COMPLEMENTARES | E205: SEDI - SERVIÇOS DIVERSOS | G205: H | H205: 2 | I205: 27.78 | J205: 55.56
A206: Composição Auxiliar | B206: 88316 | C206: SINAPI | D206: SERVENTE COM ENCARGOS COMPLEMENTARES | E206: SEDI - SERVIÇOS DIVERSOS | G206: H | H206: 5 | I206: 20.42 | J206: 102.1
A207: Composição Auxiliar | B207: 88309 | C207: SINAPI | D207: PEDREIRO COM ENCARGOS COMPLEMENTARES | E207: SEDI - SERVIÇOS DIVERSOS | G207: H | H207: 4 | I207: 28.16 | J207: 112.64
A208: Insumo | B208: 00043055 | C208: SINAPI | D208: ACO CA-50, 12,5 MM OU 16,0 MM, VERGALHAO | E208: Material | G208: KG | H208: 12 | I208: 6.86 | J208: 82.32
A209: Insumo | B209: 00043059 | C209: SINAPI | D209: ACO CA-60, 4,2 MM, OU 5,0 MM, OU 6,0 MM, OU 7,0 MM, VERGALHAO | E209: Material | G209: KG | H209: 13 | I209: 7.49 | J209: 97.37
A210: Insumo | B210: 00000032 | C210: SINAPI | D210: ACO CA-50, 6,3 MM, VERGALHAO | E210: Material | G210: KG | H210: 6 | I210: 8.35 | J210: 50.1
A211: Insumo | B211: 00000370 | C211: SINAPI | D211: AREIA MEDIA - POSTO JAZIDA/FORNECEDOR (RETIRADO NA JAZIDA, SEM TRANSPORTE) | E211: Material | G211: m³ | H211: 0.32 | I211: 130 | J211: 41.6
A212: Insumo | B212: 00001379 | C212: SINAPI | D212: CIMENTO PORTLAND COMPOSTO CP II-32 | E212: Material | G212: KG | H212: 127 | I212: 0.76 | J212: 96.52
A213: Insumo | B213: 00004718 | C213: SINAPI | D213: PEDRA BRITADA N. 2 (19 A 38 MM) POSTO PEDREIRA/FORNECEDOR, SEM FRETE | E213: Material | G213: m³ | H213: 0.08 | I213: 128.37 | J213: 10.27
A214: Insumo | B214: 00004721 | C214: SINAPI | D214: PEDRA BRITADA N. 1 (9,5 a 19 MM) POSTO PEDREIRA/FORNECEDOR, SEM FRETE | E214: Material | G214: m³ | H214: 0.23 | I214: 127.69 | J214: 29.37
A215: Insumo | B215: 00003767 | C215: SINAPI | D215: LIXA EM FOLHA PARA PAREDE OU MADEIRA, NUMERO 120, COR VERMELHA | E215: Material | G215: UN | H215: 0.12 | I215: 1.31 | J215: 0.16
A216: Insumo | B216: 00007356 | C216: SINAPI | D216: TINTA LATEX ACRILICA PREMIUM, COR BRANCO FOSCO | E216: Material | G216: L | H216: 0.18 | I216: 29.67 | J216: 5.34
A217: Insumo | B217: 00043681 | C217: SINAPI | D217: CHAPA/PAINEL DE MADEIRA COMPENSADA RESINADA (MADEIRITE RESINADO ROSA) PARA FORMA DE CONCRETO, DE 2200 x 1100 MM, E = 8 A 12 MM | E217: Material | G217: m² | H217: 7.3 | I217: 28.1 | J217: 205.13
E218: MO sem LS => | F218: 165.8 | G218: LS => | H218: 180.56 | I218: MO com LS => | J218: 346.36
E219: Valor do BDI => | F219: 406.837104 | H219: Valor com BDI => | J219: 1951.4
G220: Quant. => | H220: 1 | I220: Preço Total => | J220: 1951.4
... 195 more rows

Sheet Planilha1
